{"text_format":"1","workbook":"xlsx","n_sheets":2,"sheets":["DB1","DB2"],"not_rendered":{"charts":0,"images":0,"macros":1,"external_links":0,"defined_names":2,"comments":0,"pivot_tables":0},"unopened":[],"bounds":{"document_bytes":16777216,"sheet_cells":100000,"rows_first":2000,"rows_last":500,"rows_between":2000,"halvings":0,"cell_chars":16384,"cell_head_chars":4096},"cells_cut":0,"cells_raw":0,"read":"whole","date_system":"1900"}

{"sheet":"DB1","index":0,"n_rows":31,"n_cols":3,"rows_kept":31,"cut":false,"hidden":false,"merged":[]}
["Адрес"]
[",620144,Свердловская обл,,Екатеринбург г,,Айвазовского ул,53,,",{"$f":"INDEX('DB2'!$A$1:$A$1639,MATCH(1,('DB2'!$A$1:$A$1639<>\"\")*ISNUMBER(SEARCH('DB2'!$A$1:$A$1639,A2,40)),0))","v":"АЙВАЗОВСКОГО"},{"$f":"IFERROR(ertert(B2,'DB2'!$A$2:$B$1639,2),\"\")","v":"АВТОВОКЗАЛ"}]
[",620102,Свердловская обл,,Екатеринбург г,,Серафимы Дерябиной ул,24,,",{"$f":"INDEX('DB2'!$A$1:$A$1639,MATCH(1,('DB2'!$A$1:$A$1639<>\"\")*ISNUMBER(SEARCH('DB2'!$A$1:$A$1639,A3,40)),0))","v":{"$error":"#N/A"}},{"$f":"IFERROR(ertert(B3,'DB2'!$A$2:$B$1639,2),\"\")","v":""}]
[",620109,Свердловская обл,,Екатеринбург г,,Токарей ул,52,,",{"$f":"INDEX('DB2'!$A$1:$A$1639,MATCH(1,('DB2'!$A$1:$A$1639<>\"\")*ISNUMBER(SEARCH('DB2'!$A$1:$A$1639,A4,40)),0))","v":"ТОКАРЕЙ"},{"$f":"IFERROR(ertert(B4,'DB2'!$A$2:$B$1639,2),\"\")","v":"ВИЗ"}]
[",620098,Свердловская обл,,Екатеринбург г,,Космонавтов пр-кт,104,,",{"$f":"INDEX('DB2'!$A$1:$A$1639,MATCH(1,('DB2'!$A$1:$A$1639<>\"\")*ISNUMBER(SEARCH('DB2'!$A$1:$A$1639,A5,40)),0))","v":"КОСМОНАВТОВ"},{"$f":"IFERROR(ertert(B5,'DB2'!$A$2:$B$1639,2),\"\")","v":"ГОРНЫЙ ЩИТ; ИСТОК; СЕВЕРКА; ЧЕТ: ПИОНЕРСКИЙ - ДО №14; С №16 - ЭЛЬМАШ - ДО №10; С №102 - ПЫШМА; НЕЧЕТ: ЗАВОКЗАЛЬНЫЙ - ДО №17; С №19 - УРАЛМАШ - ДО №111; С №113 - ПЫШМА"}]
[",620102,Свердловская обл,,Екатеринбург г,,Ясная ул,2,,",{"$f":"INDEX('DB2'!$A$1:$A$1639,MATCH(1,('DB2'!$A$1:$A$1639<>\"\")*ISNUMBER(SEARCH('DB2'!$A$1:$A$1639,A6,40)),0))","v":"ЯСНАЯ"},{"$f":"IFERROR(ertert(B6,'DB2'!$A$2:$B$1639,2),\"\")","v":"ГОРНЫЙ ЩИТ; Ю-З"}]
[",620072,Свердловская обл,,Екатеринбург г,,Высоцкого ул,12,",{"$f":"INDEX('DB2'!$A$1:$A$1639,MATCH(1,('DB2'!$A$1:$A$1639<>\"\")*ISNUMBER(SEARCH('DB2'!$A$1:$A$1639,A7,40)),0))","v":"ВЫСОЦКОГО"},{"$f":"IFERROR(ertert(B7,'DB2'!$A$2:$B$1639,2),\"\")","v":"ЖБИ"}]
[",620135,Свердловская обл,,Екатеринбург г,,Красных Командиров ул,19,",{"$f":"INDEX('DB2'!$A$1:$A$1639,MATCH(1,('DB2'!$A$1:$A$1639<>\"\")*ISNUMBER(SEARCH('DB2'!$A$1:$A$1639,A8,40)),0))","v":{"$error":"#N/A"}},{"$f":"IFERROR(ertert(B8,'DB2'!$A$2:$B$1639,2),\"\")","v":""}]
[",620141,Свердловская обл,,Екатеринбург г,,Таватуйская ул,14,,",{"$f":"INDEX('DB2'!$A$1:$A$1639,MATCH(1,('DB2'!$A$1:$A$1639<>\"\")*ISNUMBER(SEARCH('DB2'!$A$1:$A$1639,A9,40)),0))","v":{"$error":"#N/A"}},{"$f":"IFERROR(ertert(B9,'DB2'!$A$2:$B$1639,2),\"\")","v":""}]
[",620102,Свердловская обл,,Екатеринбург г,,Ясная ул,2,,",{"$f":"INDEX('DB2'!$A$1:$A$1639,MATCH(1,('DB2'!$A$1:$A$1639<>\"\")*ISNUMBER(SEARCH('DB2'!$A$1:$A$1639,A10,40)),0))","v":"ЯСНАЯ"},{"$f":"IFERROR(ertert(B10,'DB2'!$A$2:$B$1639,2),\"\")","v":"ГОРНЫЙ ЩИТ; Ю-З"}]
[",620102,Свердловская обл,,Екатеринбург г,,Ясная ул,2,,",{"$f":"INDEX('DB2'!$A$1:$A$1639,MATCH(1,('DB2'!$A$1:$A$1639<>\"\")*ISNUMBER(SEARCH('DB2'!$A$1:$A$1639,A11,40)),0))","v":"ЯСНАЯ"},{"$f":"IFERROR(ertert(B11,'DB2'!$A$2:$B$1639,2),\"\")","v":"ГОРНЫЙ ЩИТ; Ю-З"}]
[",620144,Свердловская обл,,Екатеринбург г,,Айвазовского ул,53,,",{"$f":"INDEX('DB2'!$A$1:$A$1639,MATCH(1,('DB2'!$A$1:$A$1639<>\"\")*ISNUMBER(SEARCH('DB2'!$A$1:$A$1639,A12,40)),0))","v":"АЙВАЗОВСКОГО"},{"$f":"IFERROR(ertert(B12,'DB2'!$A$2:$B$1639,2),\"\")","v":"АВТОВОКЗАЛ"}]
[",620135,Свердловская обл,,Екатеринбург г,,Красных Командиров ул,19,",{"$f":"INDEX('DB2'!$A$1:$A$1639,MATCH(1,('DB2'!$A$1:$A$1639<>\"\")*ISNUMBER(SEARCH('DB2'!$A$1:$A$1639,A13,40)),0))","v":{"$error":"#N/A"}},{"$f":"IFERROR(ertert(B13,'DB2'!$A$2:$B$1639,2),\"\")","v":""}]
[",620098,Свердловская обл,,Екатеринбург г,,Космонавтов пр-кт,104,,",{"$f":"INDEX('DB2'!$A$1:$A$1639,MATCH(1,('DB2'!$A$1:$A$1639<>\"\")*ISNUMBER(SEARCH('DB2'!$A$1:$A$1639,A14,40)),0))","v":"КОСМОНАВТОВ"},{"$f":"IFERROR(ertert(B14,'DB2'!$A$2:$B$1639,2),\"\")","v":"ГОРНЫЙ ЩИТ; ИСТОК; СЕВЕРКА; ЧЕТ: ПИОНЕРСКИЙ - ДО №14; С №16 - ЭЛЬМАШ - ДО №10; С №102 - ПЫШМА; НЕЧЕТ: ЗАВОКЗАЛЬНЫЙ - ДО №17; С №19 - УРАЛМАШ - ДО №111; С №113 - ПЫШМА"}]
[",620034,Свердловская обл,,Екатеринбург г,,Черепанова ул,12,А,",{"$f":"INDEX('DB2'!$A$1:$A$1639,MATCH(1,('DB2'!$A$1:$A$1639<>\"\")*ISNUMBER(SEARCH('DB2'!$A$1:$A$1639,A15,40)),0))","v":"ЧЕРЕПАНОВА"},{"$f":"IFERROR(ertert(B15,'DB2'!$A$2:$B$1639,2),\"\")","v":"АВТОВОКЗАЛ; ЗАРЕЧНЫЙ"}]
[",620109,Свердловская обл,,Екатеринбург г,,Токарей ул,52,,",{"$f":"INDEX('DB2'!$A$1:$A$1639,MATCH(1,('DB2'!$A$1:$A$1639<>\"\")*ISNUMBER(SEARCH('DB2'!$A$1:$A$1639,A16,40)),0))","v":"ТОКАРЕЙ"},{"$f":"IFERROR(ertert(B16,'DB2'!$A$2:$B$1639,2),\"\")","v":"ВИЗ"}]
[",620141,Свердловская обл,,Екатеринбург г,,Таватуйская ул,14,,",{"$f":"INDEX('DB2'!$A$1:$A$1639,MATCH(1,('DB2'!$A$1:$A$1639<>\"\")*ISNUMBER(SEARCH('DB2'!$A$1:$A$1639,A17,40)),0))","v":{"$error":"#N/A"}},{"$f":"IFERROR(ertert(B17,'DB2'!$A$2:$B$1639,2),\"\")","v":""}]
[",620102,Свердловская обл,,Екатеринбург г,,Серафимы Дерябиной ул,24,,",{"$f":"INDEX('DB2'!$A$1:$A$1639,MATCH(1,('DB2'!$A$1:$A$1639<>\"\")*ISNUMBER(SEARCH('DB2'!$A$1:$A$1639,A18,40)),0))","v":{"$error":"#N/A"}},{"$f":"IFERROR(ertert(B18,'DB2'!$A$2:$B$1639,2),\"\")","v":""}]
[",620144,Свердловская обл,,Екатеринбург г,,Айвазовского ул,53,,",{"$f":"INDEX('DB2'!$A$1:$A$1639,MATCH(1,('DB2'!$A$1:$A$1639<>\"\")*ISNUMBER(SEARCH('DB2'!$A$1:$A$1639,A19,40)),0))","v":"АЙВАЗОВСКОГО"},{"$f":"IFERROR(ertert(B19,'DB2'!$A$2:$B$1639,2),\"\")","v":"АВТОВОКЗАЛ"}]
[",620135,Свердловская обл,,Екатеринбург г,,Красных Командиров ул,19,",{"$f":"INDEX('DB2'!$A$1:$A$1639,MATCH(1,('DB2'!$A$1:$A$1639<>\"\")*ISNUMBER(SEARCH('DB2'!$A$1:$A$1639,A20,40)),0))","v":{"$error":"#N/A"}},{"$f":"IFERROR(ertert(B20,'DB2'!$A$2:$B$1639,2),\"\")","v":""}]
[",620098,Свердловская обл,,Екатеринбург г,,Космонавтов пр-кт,104,,",{"$f":"INDEX('DB2'!$A$1:$A$1639,MATCH(1,('DB2'!$A$1:$A$1639<>\"\")*ISNUMBER(SEARCH('DB2'!$A$1:$A$1639,A21,40)),0))","v":"КОСМОНАВТОВ"},{"$f":"IFERROR(ertert(B21,'DB2'!$A$2:$B$1639,2),\"\")","v":"ГОРНЫЙ ЩИТ; ИСТОК; СЕВЕРКА; ЧЕТ: ПИОНЕРСКИЙ - ДО №14; С №16 - ЭЛЬМАШ - ДО №10; С №102 - ПЫШМА; НЕЧЕТ: ЗАВОКЗАЛЬНЫЙ - ДО №17; С №19 - УРАЛМАШ - ДО №111; С №113 - ПЫШМА"}]
[",620141,Свердловская обл,,Екатеринбург г,,Таватуйская ул,14,,",{"$f":"INDEX('DB2'!$A$1:$A$1639,MATCH(1,('DB2'!$A$1:$A$1639<>\"\")*ISNUMBER(SEARCH('DB2'!$A$1:$A$1639,A22,40)),0))","v":{"$error":"#N/A"}},{"$f":"IFERROR(ertert(B22,'DB2'!$A$2:$B$1639,2),\"\")","v":""}]
[",620034,Свердловская обл,,Екатеринбург г,,Черепанова ул,12,А,",{"$f":"INDEX('DB2'!$A$1:$A$1639,MATCH(1,('DB2'!$A$1:$A$1639<>\"\")*ISNUMBER(SEARCH('DB2'!$A$1:$A$1639,A23,40)),0))","v":"ЧЕРЕПАНОВА"},{"$f":"IFERROR(ertert(B23,'DB2'!$A$2:$B$1639,2),\"\")","v":"АВТОВОКЗАЛ; ЗАРЕЧНЫЙ"}]
[",620102,Свердловская обл,,Екатеринбург г,,Ясная ул,2,,",{"$f":"INDEX('DB2'!$A$1:$A$1639,MATCH(1,('DB2'!$A$1:$A$1639<>\"\")*ISNUMBER(SEARCH('DB2'!$A$1:$A$1639,A24,40)),0))","v":"ЯСНАЯ"},{"$f":"IFERROR(ertert(B24,'DB2'!$A$2:$B$1639,2),\"\")","v":"ГОРНЫЙ ЩИТ; Ю-З"}]
[",620072,Свердловская обл,,Екатеринбург г,,Высоцкого ул,12,",{"$f":"INDEX('DB2'!$A$1:$A$1639,MATCH(1,('DB2'!$A$1:$A$1639<>\"\")*ISNUMBER(SEARCH('DB2'!$A$1:$A$1639,A25,40)),0))","v":"ВЫСОЦКОГО"},{"$f":"IFERROR(ertert(B25,'DB2'!$A$2:$B$1639,2),\"\")","v":"ЖБИ"}]
[",620109,Свердловская обл,,Екатеринбург г,,Токарей ул,52,,",{"$f":"INDEX('DB2'!$A$1:$A$1639,MATCH(1,('DB2'!$A$1:$A$1639<>\"\")*ISNUMBER(SEARCH('DB2'!$A$1:$A$1639,A26,40)),0))","v":"ТОКАРЕЙ"},{"$f":"IFERROR(ertert(B26,'DB2'!$A$2:$B$1639,2),\"\")","v":"ВИЗ"}]
[",620072,Свердловская обл,,Екатеринбург г,,Высоцкого ул,12,",{"$f":"INDEX('DB2'!$A$1:$A$1639,MATCH(1,('DB2'!$A$1:$A$1639<>\"\")*ISNUMBER(SEARCH('DB2'!$A$1:$A$1639,A27,40)),0))","v":"ВЫСОЦКОГО"},{"$f":"IFERROR(ertert(B27,'DB2'!$A$2:$B$1639,2),\"\")","v":"ЖБИ"}]
[",620135,Свердловская обл,,Екатеринбург г,,Красных Командиров ул,19,",{"$f":"INDEX('DB2'!$A$1:$A$1639,MATCH(1,('DB2'!$A$1:$A$1639<>\"\")*ISNUMBER(SEARCH('DB2'!$A$1:$A$1639,A28,40)),0))","v":{"$error":"#N/A"}},{"$f":"IFERROR(ertert(B28,'DB2'!$A$2:$B$1639,2),\"\")","v":""}]
[",620135,Свердловская обл,,Екатеринбург г,,Красных Командиров ул,19,",{"$f":"INDEX('DB2'!$A$1:$A$1639,MATCH(1,('DB2'!$A$1:$A$1639<>\"\")*ISNUMBER(SEARCH('DB2'!$A$1:$A$1639,A29,40)),0))","v":{"$error":"#N/A"}},{"$f":"IFERROR(ertert(B29,'DB2'!$A$2:$B$1639,2),\"\")","v":""}]
[",620026,Свердловская обл,,Екатеринбург г,,Луначарского ул,205,,",{"$f":"INDEX('DB2'!$A$1:$A$1639,MATCH(1,('DB2'!$A$1:$A$1639<>\"\")*ISNUMBER(SEARCH('DB2'!$A$1:$A$1639,A30,40)),0))","v":"ЛУНАЧАРСКОГО"},{"$f":"IFERROR(ertert(B30,'DB2'!$A$2:$B$1639,2),\"\")","v":"ЧЕТ: ЦЕНТР; НЕЧЕТ: ЦЕНТР - ДО №215; С №217 - ПАРКОВЫЙ; ШАБРОВСКИЙ"}]
[",620000,Свердловская обл,,Екатеринбург г,,Академика Шварца ул,1,,",{"$f":"INDEX('DB2'!$A$1:$A$1639,MATCH(1,('DB2'!$A$1:$A$1639<>\"\")*ISNUMBER(SEARCH('DB2'!$A$1:$A$1639,A31,40)),0))","v":"ШВАРЦА"},{"$f":"IFERROR(ertert(B31,'DB2'!$A$2:$B$1639,2),\"\")","v":"БОТАНИЧЕСКИЙ"}]

{"sheet":"DB2","index":1,"n_rows":1639,"n_cols":2,"rows_kept":1639,"cut":false,"hidden":false,"merged":[]}
["Улица","Жилой район"]
["17 КМ  Ж/Д","КОЛЬЦОВО"]
["19 ВОЕННЫЙ ГОРОДОК","ЧЕРМЕТ"]
["1-Й ПОДЪЕМНЫЙ","7 КЛЮЧЕЙ"]
["1-Й ПРОЕЗД","ШУВАКИШ"]
["1-Й ПЯТИЛЕТКИ ПЛ.","УРАЛМАШ"]
["1-Й УЧАСТОК","ШИРОКАЯ РЕЧКА"]
["1-Я ЗАВОДСКАЯ","СЕВЕРКА"]
["22 ПАРТСЪЕЗДА","УРАЛМАШ"]
["29 КМ","ШАБРОВСКИЙ"]
["2-Й ПОДЪЕМНЫЙ","7 КЛЮЧЕЙ"]
["2-Й УЧАСТОК","ШИРОКАЯ РЕЧКА"]
["2-Я ЗАВОДСКАЯ","СЕВЕРКА"]
["3 ИНТЕРНАЦИОНАЛА","ЗАРЕЧНЫЙ"]
["3 ПЯТИЛЕТКИ","ПИОНЕРСКИЙ"]
["32 ВОЕННЫЙ ГОРОДОК","ЧЕРМЕТ"]
["40 ЛЕТ ОКТЯБРЯ","УРАЛМАШ"]
["40-ЛЕТИЯ КОМСОМОЛА","ЖБИ"]
["50 ПИКЕТ","ШАБРОВСКИЙ"]
["5-Й УЧАСТОК","ШИРОКАЯ РЕЧКА"]
["7-Й УЧАСТОК","ШИРОКАЯ РЕЧКА"]
["8 МАРТА","ЧЕТ: ЦЕНТР - ДО №84"]
[{"$f":"A22","v":"8 МАРТА"},"С №86 - АВТОВОКЗАЛ ДО №208"]
["8 МАРТА","С №210 - ЧЕРМЕТ"]
["8 МАРТА","НЕЧЕТ: ЦЕНТР - ДО №71"]
["8 МАРТА","С №73 - АВТОВОКЗАЛ ДО №183"]
["8 МАРТА","С №185 -БОТАНИЧЕСКИЙ - ДО №201"]
["8 МАРТА","С №203 -ЧЕРМЕТ"]
["9 МАЯ","СУЛИМ.ТОРФЯНИК"]
["95 ВОЕННЫЙ ГОРОДОК","КОЛЬЦОВО"]
["А.БАРБЮСА","ВИЗ"]
["А.БЫЧКОВОЙ","СИНИЕ КАМНИ"]
["А.ВАЛЕКА","ЦЕНТР"]
["А.ТОЛСТОГО","ПИОНЕРСКИЙ"]
["АВАНГАРДНАЯ","УРАЛМАШ"]
["АВИАТОРОВ","КОЛЬЦОВО"]
["АВИАЦИОННАЯ","АВТОВОКЗАЛ"]
["АВТОГЕННЫЙ","ЗАВОКЗАЛЬНЫЙ"]
["АВТОМАГИСТРАЛЬНАЯ","Н.СОРТИРОВКА"]
["АВТОМАТИКИ","ВТУЗГОРОДОК"]
["АВТОМАТЧИКОВ","ПАЛКИНО"]
["АВТОМОБИЛЬНЫЙ","ЧЕРМЕТ"]
["АВТОНОМНЫХ РЕСПУБЛИК","Ю-З"]
["АГАТОВА","СУЛИМ.ТОРФЯНИК"]
["АГРАРНАЯ","КОЛЬЦОВО"]
["АГРЕГАТНЫЙ","СИНИЕ КАМНИ"]
["АГРОНОМИЧЕСКАЯ","ЧЕРМЕТ"]
["АЗИНА","ЦЕНТР"]
["АЗОТНАЯ","НИЖНЕИСЕТСКИЙ"]
["АЙВАЗОВСКОГО","АВТОВОКЗАЛ"]
["АКАДЕМИЧЕСКАЯ","ВТУЗГОРОДОК"]
["АКВАМАРИНОВАЯ","СУЛИМ.ТОРФЯНИК"]
["АКСАКОВА","НИЖНЕИСЕТСКИЙ"]
["АКУЛОВА","7 КЛЮЧЕЙ"]
["АЛАЯ","ИСТОК"]
["АЛДАНСКАЯ","ЖБИ"]
["АЛЕКСАНДРОВСКАЯ","ПИОНЕРСКИЙ"]
["АЛЕКСЕЕВА","ИЗОПЛИТ"]
["АЛЕНИН","ИСТОК"]
["АЛИЕВА","ХИММАШ"]
["АЛМА-АТИНСКИЙ","АВТОВОКЗАЛ"]
["АЛМАЗНАЯ","УКТУС"]
["АЛТАЙСКАЯ","УКТУС"]
["АЛЬПИНИСТОВ","ХИММАШ"]
["АМБУЛАТОРНАЯ","РУДНЫЙ"]
["АМУНДСЕНА","ЧЕТ: Ю-З ДО №98"]
[{"$f":"A66","v":"АМУНДСЕНА"},"C №100 -УНЦ"]
["АМУНДСЕНА","НЕЧЕТ: Ю-З - ДО №99"]
["АМУНДСЕНА","С №101 - УНЦ"]
["АМУРСКАЯ","Ю-З"]
["АНГАРСКАЯ","С.СОРТИРОВКА"]
["АППАРАТНАЯ","ШАРТАШ"]
["АППАРАТНАЯ СТ.","ШАРТАШ"]
["АПРЕЛЬСКАЯ","КОЛЬЦОВО"]
["АПТЕКАРСКАЯ","ЧЕРМЕТ"]
["АРАМИЛЬСКИЙ","АВТОВОКЗАЛ"]
["АРАМИЛЬСКИЙ ТРАКТ 1 КМ","КОЛЬЦОВО"]
["АРМАВИРСКАЯ","ЗАВОКЗАЛЬНЫЙ"]
["АРМЯНСКИЙ","АВТОВОКЗАЛ"]
["АРТЕЛЬНЫЙ","АВТОВОКЗАЛ"]
["АРТЕМА","ЛЕЧЕБНЫЙ"]
["АРТЕМОВСКИЙ","ЖБИ"]
["АРТИЛЛЕРИСТОВ","ИЗОПЛИТ"]
["АРТИНСКАЯ","ЗАВОКЗАЛЬНЫЙ"]
["АРХЕОЛОГОВ","ШУВАКИШ"]
["АСБЕСТОВСКИЙ","ПИОНЕРСКИЙ"]
["АСТРАХАНСКАЯ","ПИОНЕРСКИЙ"]
["АТМОСФЕРНАЯ","КОЛЬЦОВО"]
["АФФИНАЖНЫЙ","ЧЕРМЕТ"]
["АЧИНСКАЯ","7 КЛЮЧЕЙ"]
["АШХАБАДСКИЙ","ЧЕРМЕТ"]
["АЯТСКИЙ","ЧЕРМЕТ"]
["Б.ЕЛЬЦИНА","ЦЕНТР"]
["БАБУШКИНА","ЭЛЬМАШ"]
["БАГАРЯКСКИЙ","РУДНЫЙ"]
["БАГЕРНАЯ","МЕДНЫЙ"]
["БАГРАТИОНА","ЧЕРМЕТ"]
["БАГРОВАЯ","УКТУС"]
["БАЖЕНОВСКИЙ","ШАБРОВСКИЙ"]
["БАЖОВА","ЧЕТ: ЦЕНТР"]
[{"$f":"A100","v":"БАЖОВА"},"НЕЧЕТ : ЦЕНТР ДО №221"]
["БАЖОВА","С №223 - ПАРКОВЫЙ"]
["БАЖОВА","ШАБРОВСКИЙ"]
["БАЗАЛЬТОВАЯ","ЕЛИЗАВЕТ"]
["БАЗАРНЫЙ","РУДНЫЙ"]
["БАЗОВЫЙ","ЧЕТ:СИБИРСКИЙ - ДО №22"]
[{"$f":"A106","v":"БАЗОВЫЙ"},"С №24 - АВТОВОКЗАЛ"]
["БАЗОВЫЙ","НЕЧЕТ: СИБИРСКИЙ - №21"]
["БАЗОВЫЙ","С №23 - АВТОВОКЗАЛ"]
["БАЙДУКОВА","7 КЛЮЧЕЙ"]
["БАЙКАЛЬСКАЯ","СИНИЕ КАМНИ"]
["БАК.КОМИССАРОВ","УРАЛМАШ"]
["БАЛАКИНСКИЙ","Ю-З"]
["БАЛАКИРЕВА","ЧЕРМЕТ"]
["БАЛАКЛАВСКИЙ","ЭЛЬМАШ"]
["БАЛТЫМСКИЙ","САДОВЫЙ"]
["БАЛТЫМСКИЙ","Ю-З"]
["БАНКОВСКИЙ","ЦЕНТР"]
["БАННИКОВА","УРАЛМАШ"]
["БАННЫЙ","АВТОВОКЗАЛ"]
["БАРАНОВА","ВИЗ"]
["БАРАНЧИНСКАЯ","ПАЛКИНО"]
["БАРБАРИСОВЫЙ","УРАЛМАШ"]
["БАРВИНКА","УНЦ"]
["БАРДИНА","Ю-З"]
["БАРРИКАДНАЯ","Н.СОРТИРОВКА"]
["БАРХОТСКАЯ","ВТУЗГОРОДОК"]
["БАРЬЕРНАЯ","ИЗОПЛИТ"]
["БАТУМСКИЙ","ЧЕРМЕТ"]
["БАУМАНА","ЭЛЬМАШ"]
["БАХЧИВАНДЖИ","КОЛЬЦОВО"]
["БАХЧИВАНДЖИ ПЛ.","КОЛЬЦОВО"]
["БАШКИРСКИЙ","НИЖНЕИСЕТСКИЙ"]
["БЕБЕЛЯ","ЧЕТ: ЗАРЕЧНЫЙ - ДО №134"]
[{"$f":"A134","v":"БЕБЕЛЯ"},"С №136 - Н.СОРТИРОВКА"]
["БЕБЕЛЯ","НЕЧЕТ: ЗАРЕЧНЫЙ - ДО №113"]
["БЕБЕЛЯ","С №115 - Н.СОРТИРОВКА"]
["БЕЗВОДНЫЙ","СИБИРСКИЙ"]
["БЕЛИНСКОГО","ЧЕТ: ЦЕНТ - ДО №110"]
[{"$f":"A139","v":"БЕЛИНСКОГО"},"С №112 - АВТОВОКЗАЛ - ДО №244"]
["БЕЛИНСКОГО","С №246 - БОТАНИЧЕСКИЙ"]
["БЕЛИНСКОГО","НЕЧЕТ: ЦЕНТР - ДО №95"]
["БЕЛИНСКОГО","С №97 АВТОВОКЗАЛ - ДО №183"]
["БЕЛИНСКОГО","С №185 БОТАНИЧЕСКИЙ"]
["БЕЛОГОРСКАЯ","УКТУС"]
["БЕЛОРЕЦКИЙ","АВТОВОКЗАЛ"]
["БЕЛОРЕЧЕНСКАЯ","Ю-З"]
["БЕЛОРУССКИЙ","ВИЗ"]
["БЕЛОЯРСКАЯ","КОМПРЕССОРНЫЙ"]
["БЕЛЯКОВА","7 КЛЮЧЕЙ"]
["БЕРЕГОВАЯ","ИСТОК"]
["БЕРЕГОВАЯ","ПАЛКИНО"]
["БЕРЕГОВОГО","ГОРНЫЙ ЩИТ"]
["БЕРЕЖНАЯ","КАЛИНОВСКИЙ"]
["БЕРЕЗИТ","САДОВЫЙ"]
["БЕРЕЗИТОВАЯ","САДОВЫЙ"]
["БЕРЕЗОВАЯ","ПОЛЕВОДСТВО"]
["БЕРЕЗОВАЯ","ПЫШМА"]
["БЕРЕЗОВСКАЯ","ПЫШМА"]
["БЕРЕЗОВЫЙ КЛЮЧ","ПАЛНИКС"]
["БЕССАРАБСКАЯ","КОМПРЕССОРНЫЙ"]
["БЕСШУМНЫЙ","Ю-З"]
["БЕТОНЩИКОВ","ЖБИ"]
["БЕХТЕРЕВА","ПИОНЕРСКИЙ"]
["БИБЛИОТЕЧНАЯ","ВТУЗГОРОДОК"]
["БИЛИМБАЕВСКАЯ","С.СОРТИРОВКА"]
["БИРЮЗОВАЯ","ПТИЦЕЕФАБРИКА"]
["БИСЕРТСКАЯ","ЕЛИЗАВЕТ"]
["БЛАГОДАТСКАЯ","УКТУС"]
["БЛЮХЕРА","ЧЕТ: ВТУЗГОРОДОК"]
[{"$f":"A170","v":"БЛЮХЕРА"},"НЕЧЕТ: ПИОНЕРСКИЙ"]
["БОБРОВЫЙ","МЕДНЫЙ"]
["БОБРУЙСКАЯ","АВТОВОКЗАЛ"]
["БОГАТЫРСКАЯ","ИСТОК"]
["БОДРЫЙ","ИЗОПЛИТ"]
["БОЕВОЙ","НИЖНЕИСЕТСКИЙ"]
["БОЕВЫХ ДРУЖИН","ЦЕНТР"]
["БОКОВОЙ","КОЛЬЦОВО"]
["БОКСИТОВЫЙ","ПТИЦЕФАБРИКА"]
["БОЛГАРСКИЙ","НИЖНЕИСЕТСКИЙ"]
["БОЛОТНАЯ","ШАБРОВСКИЙ"]
["БОЛОТНЫЙ","ИЗОПЛИТ"]
["БОЛЬНИЧНАЯ","ВОКЗАЛЬНЫЙ"]
["БОЛЬШАКОВА","ЧЕТ: ПАРКОВЫЙ - ДО №22"]
[{"$f":"A184","v":"БОЛЬШАКОВА"},"С №24 - ЦЕНТР"]
["БОЛЬШАКОВА","НЕЧЕТ : ПАРКОВЫЙ - ДО №43"]
["БОЛЬШАКОВА","С №45 - АВТОВОКЗАЛ"]
["БОЛЬШАЯ СИМБИРКА","САДОВЫЙ"]
["БОЛЬШИЕ КАРАСИ","КАРАСЬЕОЗЕРСК"]
["БОЛЬШОЙ КОННЫЙ","ВИЗ"]
["БОРДЮРНАЯ","ПТИЦЕФАБРИКА"]
["БОРОВАЯ","ПИОНЕРСКИЙ"]
["БОРОДИНА","ХИММАШ"]
["БОРОДУЛИНСКАЯ","КОМПРЕССОРНЫЙ"]
["БОТАНИЧЕСКАЯ","ВТУЗГОРОДОК"]
["БОТКИНСКАЯ","УРАЛМАШ"]
["БОЦМАНСКАЯ","ШАРТАШ"]
["БР.БЫКОВЫХ","ЦЕНТР"]
["БРАТСКАЯ","ЧЕРМЕТ"]
["БРИГАДИРОВ","АВТОВОКЗАЛ"]
["БРИКЕТНЫЙ","ИЗОПЛИТ"]
["БРУСНИЧНАЯ","ШИРОКАЯ РЕЧКА"]
["БРЯНСКАЯ","ЗАВОКЗАЛЬНЫЙ"]
["БУДЕННОГО","ГОРНЫЙ ЩИТ"]
["БУДЕННОГО","ПИОНЕРСКИЙ"]
["БУРИЛЬЩИКОВ","СИБИРСКИЙ"]
["БУТОРИНА","ШАРТАШСКИЙ РЫНОК"]
["В.ДЕ ГЕННИНА","АКАДЕМИЧЕСКИЙ"]
["В.ЗАСУЛИЧ","ЗАРЕЧНЫЙ"]
["В.КОТИКА","ЭЛЬМАШ"]
["В/Ч 28809","ШАБРОВСКИЙ"]
["В/Ч 51130","ГОРНЫЙ ЩИТ"]
["ВАВИЛОВА","ИСТОК"]
["ВАГОННЫЙ","ЧЕРМЕТ"]
["ВАЙНЕРА","ЦЕНТР"]
["ВАКИНА","НИЖНЕИСЕТСКИЙ"]
["ВАЛИМХАМАТОВА","САДОВЫЙ"]
["ВАЛОВОЙ","НИЖНЕИСЕТСКИЙ"]
["ВАРШАВСКАЯ","ПТИЦЕФАБРИКА"]
["ВАРЯЖСКАЯ","КОМПРЕССОРНЫЙ"]
["ВАСЕНКО","АВТОВОКЗАЛ"]
["ВАСИЛЬЕВА","Ю-З"]
["ВАСИЛЬКОВАЯ","ШИРОКАЯ РЕЧКА"]
["ВАТУТИНА","С.СОРТИРОВКА"]
["ВЕНГ.КОММУНАРОВ","ВИЗ"]
["ВЕРБНАЯ","ИСТОК"]
["ВЕРБОВОЧНЫЙ","ИЗОПЛИТ"]
["ВЕРЕСКОВЫЙ","Ю-З"]
["ВЕРЕЩАГИНА","АВТОВОКЗАЛ"]
["ВЕРСТОВАЯ","САДОВЫЙ"]
["ВЕРХНИЙ","УРАЛМАШ"]
["ВЕРНЯЯ","ПАЛКИН.ТОРФЯНИК"]
["ВЕРХОВАЯ","МЕДНЫЙ"]
["ВЕРХОЯНСКАЯ","ЖБИ"]
["ВЕРШИНИНСКАЯ","ВИЗ"]
["ВЕСЕННЯЯ","НИЖНЕИСЕТСКИЙ"]
["ВЕТЕРИНАРНАЯ","Ю-З"]
["ВЕТРЕННЫЙ","ИСТОК"]
["ВЕЧЕРНИЙ","КОЛЬЦОВО"]
["ВЗРЫВНИКОВ","СИБИРСКИЙ"]
["ВИДНАЯ","ПАЛНИКС"]
["ВИЖАЙСКАЯ","УКТУС"]
["ВИЗ-БУЛЬВАР","ВИЗ"]
["ВИКУЛОВА","ВИЗ"]
["ВИЛОНОВА","ПИОНЕРСКИЙ"]
["ВИНОГРАДНЫЙ","ШАРТАШ"]
["ВИРАЖНЫЙ","ШАРТАШСКИЙ РЫНОК"]
["ВИСИМСКИЙ","КАРАСЬЕОЗЕРСК"]
["ВИШЕРСКИЙ","УРАЛМАШ"]
["ВИШНЕВАЯ","ВТУЗГОРОДОК"]
["ВЛАДИВОСТОКСКАЯ","ПИОНЕРСКИЙ"]
["ВЛАДИМИРСКАЯ","ПАЛНИКС"]
["ВОГУЛЬСКИЙ","ШАРТАШ"]
["ВОДИТЕЛЬСКИЙ","ЧЕРМЕТ"]
["ВОДНАЯ","ХИММАШ"]
["ВОДОЕМНАЯ","УКТУС"]
["ВОДОНАСОСНАЯ","ВИЗ"]
["ВОДОПЬЯНОВА","7 КЛЮЧЕЙ"]
["ВОЕВОДИНА","ЦЕНТР"]
["ВОЕННАЯ","ЧЕРМЕТ"]
["ВОЕННАЯ","ШАБРОВСКИЙ"]
["ВОЕННОГО ФЛОТА","Ю-З"]
["ВОЕННЫЙ ГОРОДОК","КОЛЬЦОВО"]
["ВОИНОВ","УКТУС"]
["ВОЙКОВА","ЭЛЬМАШ"]
["ВОКЗАЛЬНАЯ","ВОКЗАЛЬНЫЙ"]
["ВОЛГОГРАДСКАЯ","Ю-З"]
["ВОЛЖСКАЯ","7 КЛЮЧЕЙ"]
["ВОЛОГОДСКАЯ","7 КЛЮЧЕЙ"]
["ВОЛОДАРСКОГО","ЦЕНТР"]
["ВОЛХОВСКАЯ","ПИОНЕРСКИЙ"]
["ВОЛЧАНСКИЙ","ЛЕЧЕБНЫЙ"]
["ВОЛЬНЫЙ","ЖБИ"]
["ВОНСОВСКОГО","УНЦ"]
["ВОРОВСКОГО","УКТУС"]
["ВОРОНЕЖСКИЙ","Ю-З"]
["ВОРОНИНА","7 КЛЮЧЕЙ"]
["ВОСКРЕСНЫЙ","ПАЛНИКС"]
["ВОССТАНИЯ","УРАЛМАШ"]
["ВОСТОЧНАЯ","ЧЕТ: ЦЕНТР - ДО №170"]
[{"$f":"A280","v":"ВОСТОЧНАЯ"},"С №172 - ПАРКОВЫЙ"]
["ВОСТОЧНАЯ","НЕЧЕТ: ЦЕНТР - ДО №13"]
["ВОСТОЧНАЯ","С №15 - ШРТАШСКИЙ РЫНОК - ДО №23"]
["ВОСТОЧНАЯ","С №25 - ПАРКОВЫЙ"]
["ВОСЬМОЙ","СИНИЕ КАМНИ"]
["ВРАЧЕЙ","ШИРОКАЯ РЕЧКА"]
["ВСТРЕЧНАЯ","ЧУСОВСКОЕ ОЗЕРО"]
["ВСТРЕЧНЫЙ","МЕДНЫЙ"]
["ВСТРЕЧНЫЙ","Ю-З"]
["ВЫЕЗДНОЙ","ВОКЗАЛЬНЫЙ"]
["ВЫСОКИЙ","ХИММАШ"]
["ВЫСОКОВОЛЬТНЫЙ","УРАЛМАШ"]
["ВЫСОКОГОРСКАЯ","ШАБРОВСКИЙ"]
["ВЫСОТНАЯ","ХИММАШ"]
["ВЫСОЦКОГО","ЖБИ"]
["ВЫХОДНОЙ","ЛЕЧЕБНЫЙ"]
["ВЬЮХИНСКИЙ","ЛЕЧЕБНЫЙ"]
["ВЯЗОВСКИЙ","ЛЕЧЕБНЫЙ"]
["ВЯЗОВЫЙ","ЛЕЧЕБНЫЙ"]
["ВЯТСКАЯ","ЗАРЕЧНЫЙ"]
["ГАГАРИНА","ВТУЗГОРОДОК"]
["ГАГАРИНА","ГОРНЫЙ ЩИТ"]
["ГАЕВСКИЙ","ЧЕРМЕТ"]
["ГАЗЕТНАЯ","ЧЕРМЕТ"]
["ГАЗОВЫЙ","ХИММАШ"]
["ГАЗОРЕЗЧИКОВ","ЧЕРМЕТ"]
["ГАЙДАРА","С.СОРТИРОВКА"]
["ГАЛАКТИКА","ВИЗ"]
["ГАЛЛИЛЕЯ","ВИЗ"]
["ГАРАЖНАЯ","СОВХОЗ"]
["ГАРИНСКИЙ","ВИЗ"]
["ГАРШИНА","УКТУС"]
["ГАСТЕЛЛО","УКТУС"]
["ГВАРДЕЙЦЕВ","ШИРОКАЯ РЕЧКА"]
["ГЕНЕРАЛЬСКАЯ","ВТУЗГОРОДОК"]
["ГЕОЛОГИЧЕСКАЯ","ХИММАШ"]
["ГЕОЛОГИЧЕСКАЯ","СУЛИМ.ТОРФЯНИК"]
["ГЕОЛОГОВ","ПИОНЕРСКИЙ"]
["ГЕОРГИЕВСКАЯ","ИСТОК"]
["ГЕОРГИНОВЫЙ","УРАЛМАШ"]
["ГЕРЦЕНА","НИЖНЕИСЕТСКИЙ"]
["ГИПСОВАЯ","С.СОРТИРОВКА"]
["ГИПСОВАЯ СТ.","С.СОРТИРОВКА"]
["ГЛАВНАЯ","ИСТОК"]
["ГЛАДКИЙ","ПИОНЕРСКИЙ"]
["ГЛИННАЯ","САДОВЫЙ"]
["ГЛУБОКОЕ","ИСТОК"]
["ГЛУХАЯ","ШИРОКАЯ РЕЧКА"]
["ГОГОЛЯ","ЦЕНТР"]
["ГОЛОГОРСКАЯ","КАРАСЬЕОЗЕРСК"]
["ГОЛУБИЧНАЯ","ШИРОКАЯ РЕЧКА"]
["ГОНЧАРНЫЙ","УКТУС"]
["ГОНЧАРОВА","ВИЗ"]
["ГОРЕЛОВСКАЯ","СОВХОЗ"]
["ГОРНИСТОВ","КОЛЬЦОВО"]
["ГОРНОРАБОЧИХ","РУДНЫЙ"]
["ГОРНЯКОВ","СЕВЕРКА"]
["ГОРОДСКАЯ","СОВХОЗ"]
["ГОРСКИЙ","НИЖНЕИСЕТСКИЙ"]
["ГОРЬКОГО","ЦЕНТР"]
["ГОТВАЛЬДА","ЗАРЕЧНЫЙ"]
["ГРАЖД. ВОЙНЫ","ПИОНЕРСКИЙ"]
["ГРАЖДАНСКАЯ","ВОКЗАЛЬНЫЙ"]
["ГРАНИТНАЯ","СЕВЕРКА"]
["ГРАНИТНАЯ","СИНИЕ КАМНИ"]
["ГРАНИТНЫЙ","ЖБИ"]
["ГРАЧЕЙ","САДОВЫЙ"]
["ГРИБНОЙ","ШИРОКАЯ РЕЧКА"]
["ГРИБОЕДОВА","ХИММАШ"]
["ГРИЗОДУБОВОЙ","Ю-З"]
["ГРОМОВА","Ю-З"]
["ГРУЗИНСКИЙ","ШАРТАШ"]
["ГРУЗЧИКОВ","ВОКЗАЛЬНЫЙ"]
["ГРУНТОВАЯ","УРАЛМАШ"]
["ГРЯЗНОВА","ВИЗ"]
["ГУБАХИНСКАЯ","ШАРТАШ"]
["ГУБКИНА","ХИММАШ"]
["ГУДОВАНЦЕВА","ЭЛЬМАШ"]
["ГУРЗУФСКАЯ","ЧЕТ: Ю-З - ДО №38"]
[{"$f":"A359","v":"ГУРЗУФСКАЯ"},"С №40 - ВИЗ"]
["ГУРЗУФСКАЯ","НЕЧЕТ: Ю-З"]
["Д.БЕДНОГО","УКТУС"]
["Д.ЗВЕРЕВА","ПИОНЕРСКИЙ"]
["Д.ИБАРРУРИ","ВИЗ"]
["Д.-УРАЛЬСКОГО","Ю-З"]
["ДАГЕСТАНСКАЯ","ХИММАШ"]
["ДАЛЕКАЯ","ЧЕРМЕТ"]
["ДАЛМАТОВСКАЯ","НИЖНЕИСЕТСКИЙ"]
["ДАЛЬНЕВОСТОЧНАЯ","УКТУС"]
["ДАЛЬНИЙ БЕРЕЗИТ","САДОВЫЙ"]
["ДАЛЬНЯЯ","ШИРОКАЯ РЕЧКА"]
["ДАНИЛИНА","ВИЗ"]
["ДАНИЛОВСКАЯ","ЭЛЬМАШ"]
["ДАРВИНА","УКТУС"]
["ДАРЬИНСКАЯ","ПАЛНИКС"]
["ДАУРСКАЯ","ЭЛЬМАШ"]
["ДАЧНАЯ","ШАРТАШ"]
["ДВИНСКАЯ","УНЦ"]
["ДЕВЯТЫЙ","СИНИЕ КАМНИ"]
["ДЕЕВА","ГОРНЫЙ ЩИТ"]
["ДЕЕВА","ПОЛЕВОДСТВО"]
["ДЕКАБРИСТОВ","ЧЕТ: ЦЕНТР"]
[{"$f":"A382","v":"ДЕКАБРИСТОВ"},"НЕЧЕТ: ПАРКОВЫЙ - ДО №29"]
["ДЕКАБРИСТОВ","С №31 - ЦЕНТР"]
["ДЕНЕЖНАЯ","ШУВАКИШ"]
["ДЕПОВСКИЙ","С.СОРТИРОВКА"]
["ДЕПУТАТСКАЯ","Ю-З"]
["ДЕРНОВЫЙ","ПТИЦЕФАБРИКА"]
["ДЕТСКИЙ","ВИЗ"]
["ДЖАЛИЛЯ","САДОВЫЙ"]
["ДЖАМБУЛА","ЭЛЬМАШ"]
["ДЗЕРЖИНСКОГО","ЦЕНТР"]
["ДЗЕРЖИНСКОГО","ШАБРОВСКИЙ"]
["ДИВИЗИОННАЯ","УНЦ"]
["ДИЗЕЛЬНЫЙ","ЧЕРМЕТ"]
["ДИМИТРОВА","НИЖНЕИСЕТСКИЙ"]
["ДНЕПРОВСКИЙ","ХИММАШ"]
["ДОБРОЛЮБОВА","ЦЕНТР"]
["ДОБРЯНСКИЙ","ПТИЦЕФАБРИКА"]
["ДОЗОРНЫЙ","НИЖНЕИСЕТСКИЙ"]
["ДОК","ЛЕЧЕБНЫЙ"]
["ДОЛИНКА","ИСТОК"]
["ДОЛИНКА","КОМПРЕССОРНЫЙ"]
["ДОЛМАТОВСКАЯ","НИЖНЕИСЕТСКИЙ"]
["ДОНБАССКАЯ","УРАЛМАШ"]
["ДОНСКАЯ","ЭЛЬМАШ"]
["ДОРОЖНАЯ","ЧЕРМЕТ"]
["ДОРОНИНА","7 КЛЮЧЕЙ"]
["ДОСТОЕВСКОГО","УРАЛМАШ"]
["ДОШКОЛЬНАЯ","РУДНЫЙ"]
["ДОЩАТЫЙ","НИЖНЕИСЕТСКИЙ"]
["ДРЕВЕСНЫЙ","УРАЛМАШ"]
["ДРУЖБЫ","КАРАСЬЕОЗЕРСК"]
["ДРУЖИНИНСКАЯ","С.СОРТИРОВКА"]
["ДРУЖИННИКОВ","СОВХОЗ"]
["ДУБРОВИНСКИЙ","ВИЗ"]
["ДУНАЙСКАЯ","УКТУС"]
["ДУНИТОВЫЙ","УКТУС"]
["ЕВРОПЕЙСКАЯ","СОВХОЗ"]
["ЕВРОПЕЙСКАЯ","ПАЛНИКС"]
["ЕВРОПЕЙСКИЙ","ВОКЗАЛЬНЫЙ"]
["ЕГОРОВА","ЗАРЕЧНЫЙ"]
["ЕДИНОГО ФРОНТА","ЗАРЕЧНЫЙ"]
["ЕЖЕВИЧНАЯ","ШИРОКАЯ РЕЧКА"]
["ЕКАД","ХИММАШ"]
["ЕКАД 12 КМ","ХИММАШ"]
["ЕКАД 1 КМ","ХИММАШ"]
["ЕКАД 5 КМ","ХИММАШ"]
["ЕЛАНСКИЙ","АВТОВОКЗАЛ"]
["ЕЛИЗАВЕТИНСКОЕ","ЕЛИЗАВЕТ"]
["ЕЛОВСКИЙ","УРАЛМАШ"]
["ЕНИСЕЙСКАЯ","7 КЛЮЧЕЙ"]
["ЕРЕВАНСКАЯ","ЗАВОКЗАЛЬНЫЙ"]
["ЕРЕМИНА","ЦЕНТР"]
["ЕРМАКОВА","ВИЗ"]
["ЕРШОВА","УРАЛМАШ"]
["ЕСЕНИНА","СИНИЕ КАМНИ"]
["ЖДАНОВА","ЦЕНТР"]
["ЖЕЛЕЗНОДОРОЖНИКОВ ","ПИОНЕРСКИЙ"]
["ЖЕЛЕЗНОДОРОЖНИКОВ","СЕВЕРКА"]
["ЖЕЛЯБОВА","НИЖНЕИСЕТСКИЙ"]
["ЖИВОПИСНАЯ","УНЦ"]
["ЖИВОТНОВОДОВ","ПОЛЕВОДСТВО"]
["ЖИЛОВКА","МЕДНЫЙ"]
["ЖИЛПЛОЩАДКА","ЕЛИЗАВЕТ"]
["ЖУКОВА","ЦЕНТР"]
["ЖУКОВСКОГО ПЛ.","УКТУС"]
["ЗАБОЙЩИКОВ","РУДНЫЙ"]
["ЗАВОДСКАЯ","САДОВЫЙ"]
["ЗАВОДСКАЯ","ЧЕТ: ВИЗ - ДО №46"]
[{"$f":"A450","v":"ЗАВОДСКАЯ"},"С №48 - Ю-З"]
["ЗАВОДСКАЯ","НЕЧЕТ: ВИЗ - ДО ;49"]
["ЗАВОДСКАЯ","С №51 - Ю-З"]
["ЗАВОКЗАЛЬНАЯ","ЗАВОКЗАЛЬНЫЙ"]
["ЗАГОРОДНЫЙ","ЛЕЧЕБНЫЙ"]
["ЗАГОРСКАЯ","ШИРОКАЯ РЕЧКА"]
["ЗАЕЗЖИЙ","ШАРТАШ"]
["ЗАМЯТИНА","ЭЛЬМАШ"]
["ЗАОЗЕРСКИЙ","Ю-З"]
["ЗАПАДНАЯ","НИЖНЕИСЕТСКИЙ"]
["ЗАПАДНЫЙ","СЕВЕРКА"]
["ЗАПОВЕДНАЯ","ИСТОК"]
["ЗАПОРОЖСКИЙ","ХИММАШ"]
["ЗАПРУДНЫЙ","ИСТОК"]
["ЗАРЕЧНАЯ","УРАЛМАШ"]
["ЗАРЯДНЫЙ","УКТУС"]
["ЗАЩИТНАЯ","ИЗОПЛИТ"]
["ЗВАНЫЙ","НИЖНЕИСЕТСКИЙ"]
["ЗВЕЗДНЫЙ","КОЛЬЦОВО"]
["ЗВОНКИЙ","ЕЛИЗАВЕТ"]
["ЗДЕШНИЙ","УРАЛМАШ"]
["ЗЕЛЕНАЯ","ГОРНЫЙ ЩИТ"]
["ЗЕЛЕНАЯ","САДОВЫЙ"]
["ЗЕЛЕНАЯ","ЧУСОВСКОЕ ОЗЕРО"]
["ЗЕЛЕНАЯ","ШУВАКИШ"]
["ЗЕЛЕННАЯ РОЩА","ЦЕНТР"]
["ЗЕЛЕНОГОРСКАЯ","КАРАСЬЕОЗЕРСК"]
["ЗЕЛЕНЫЙ","УРАЛМАШ"]
["ЗЕЛЕНЫЙ БОР","ГОРНЫЙ ЩИТ"]
["ЗЕЛЕНЫЙ ОСТРОВ","ВИЗ"]
["ЗЕМЛЕДЕЛИЯ","ИСТОК"]
["ЗЕМЛЯНИЧНЫЙ","ШИРОКАЯ РЕЧКА"]
["ЗЕМЛЯНИЧКИ","УРАЛМАШ"]
["ЗЕМСКАЯ","САДОВЫЙ"]
["ЗЕНИТЧИКОВ","ЧЕРМЕТ"]
["ЗЕРНОВОЙ","ЛЕЧЕБНЫЙ"]
["ЗИМНЯЯ ","УКТУС"]
["ЗЛАТОУСТОВСКИЙ","АВТОВОКЗАЛ"]
["ЗМЕИНАЯ ГОРА","ХИММАШ"]
["ЗООЛОГИЧЕСКАЯ","Ю-З"]
["ЗЫКОВА","НИЖНЕИСЕТСКИЙ"]
["ЗЫРЯНСКИЙ","ПТИЦЕФАБРИКА"]
["ИВАНОВА","ПАЛКИНО"]
["ИВОВАЯ","МЕДНЫЙ"]
["ИЗБИРАТЕЛЕЙ","УРАЛМАШ"]
["ИЗВЕСТКОВЫЙ КОРДОН","МЕДНЫЙ"]
["ИЗОБРЕТАТЕЛЕЙ","УКТУС"]
["ИЗОПЛИТНАЯ","ИЗОПЛИТ"]
["ИЗРАЗЦОВЫЙ","УРАЛМАШ"]
["ИЗУМРУДНЫЙ","ЭЛЬМАШ"]
["ИЛИМСКАЯ","УРАЛМАШ"]
["ИЛЬИНСКАЯ","ВОКЗАЛЬНЫЙ"]
["ИЛЬИНСКИЙ","7 КЛЮЧЕЙ"]
["ИЛЬИЧА","УРАЛМАШ"]
["ИНДУСТРИИ","УРАЛМАШ"]
["ИНЖЕНЕРНАЯ","ХИММАШ"]
["ИНСТИТУТСКАЯ","УНЦ"]
["ИНСТРУМЕНТАЛЬЩИКОВ","ПАРКОВЫЙ"]
["ИРБИТСКАЯ","ПИОНЕРСКИЙ"]
["ИРБИТСКИЙ","СИНИЕ КАМНИ"]
["ИРГИНСКИЙ","С.СОРТИРОВКА"]
["ИРКУТСКАЯ","Ю-З"]
["ИРТЫШСКИЙ","ИЗОПЛИТ"]
["ИСЕТСКАЯ","ХИММАШ"]
["ИСКРОВЦЕВ","ШАРТАШ"]
["ИСП.РАБОЧИХ","ЦЕНТР"]
["ИСПОЛКОМОВСКИЙ","ИЗОПЛИТ"]
["ИСПЫТАТЕЛЕЙ","КОЛЬЦОВО"]
["ИССЛЕДОВАТЕЛЕЙ","УНЦ"]
["ИСТОК СТ.","КОМПРЕССОРНЫЙ"]
["ИСТОРИЧЕСКАЯ","СОВХОЗ"]
["ИСТОЧНАЯ","ЖБИ"]
["ИТКУЛЬСКИЙ","ЛЕЧЕБНЫЙ"]
["ИТР","ШАБРОВСКИЙ"]
["ИШИМСКИЙ","ЗАВОКЗАЛЬНЫЙ"]
["ИЮЛЬСКАЯ","ПИОНЕРСКИЙ"]
["К.ЛИБКНЕХТА","ЦЕНТР"]
["К.МАРКСА","ГОРНЫЙ ЩИТ"]
["К.МАРКСА","ЦЕНТР"]
["К.ЦЕТКИН","ЦЕНТР"]
["КАЗАНСКАЯ","ПИОНЕРСКИЙ"]
["КАЗАЧИЙ","ШАРТАШ"]
["КАЛИНИНА","УРАЛМАШ"]
["КАЛИНИНА","ШАБРОВСКИЙ"]
["КАЛИНОВКА","ЭЛЬМАШ"]
["КАЛИНОВСКИЕ РАЗРЕЗЫ","ЭЛЬМАШ"]
["КАЛИНОВСКИЙ","ЭЛЬМАШ"]
["КАЛМЫЦКИЙ","УКТУС"]
["КАЛЯЕВА","ЗАРЕЧНЫЙ"]
["КАМАНИНА","7 КЛЮЧЕЙ"]
["КАМЕНКА","САДОВЫЙ"]
["КАМЕННЫЕ ПАЛАТКИ","ЖБИ"]
["КАМЕННЫЙ","ЛЕЧЕБНЫЙ"]
["КАМЕНОТЕСОВ","ЛЕЧЕБНЫЙ"]
["КАМЕНЩИКОВ","ВИЗ"]
["КАМСКАЯ","7 КЛЮЧЕЙ"]
["КАМЧАТСКАЯ","ПИОНЕРСКИЙ"]
["КАМЫШИНСКИЙ","ЧЕРМЕТ"]
["КАМЫШЛОВСКИЙ","ПИОНЕРСКИЙ"]
["КАНАТНЫЙ","ЕЛИЗАВЕТ"]
["КАРАБАШСКИЙ","АВТОВОКЗАЛ"]
["КАРАВАННАЯ","НИЖНЕИСЕТСКИЙ"]
["КАРАСЬЕОЗЕРСК","ВИЗ"]
["КАРЕЛЬСКАЯ","КОМПРЕССОРНЫЙ"]
["КАРКАСНЫЙ","КОЛЬЦОВО"]
["КАРПИНСКОГО","УКТУС"]
["КАРЬЕРНАЯ","САДОВЫЙ"]
["КАСЛИНСКИЙ","УКТУС"]
["КАТАЙСКИЙ","ВИЗ"]
["КАЧИГИНСКАЯ","УНЦ"]
["КАЧКАНАРСКАЯ","ЗАРЕЧНЫЙ"]
["КАШИНСКИЙ","ЧЕРМЕТ"]
["КАШИРСКАЯ","ЭЛЬМАШ"]
["КВАРЦЕВАЯ","УКТУС"]
["КЕДРОВАЯ","ШАРТАШ"]
["КЕРАМИК СТ.","ЧЕРМЕТ"]
["КЕРЧЕНСКИЙ","ПТИЦЕФАБРИКА"]
["КИЕВСКИЙ","Ю-З"]
["КИЗЕЛОВСКАЯ","ВИЗ"]
["КИМОВСКАЯ","ВОКЗАЛЬНЫЙ"]
["КИРГИЗСКИЙ","УКТУС"]
["КИРОВА","ВИЗ"]
["КИРОВА","ШАБРОВСКИЙ"]
["КИРОВА ПЛ.","ВТУЗГОРОДОК"]
["КИРОВГРАДСКАЯ","УРАЛМАШ"]
["КИРПИЧНЫЙ","УКТУС"]
["КИСЛОРОДНАЯ","ПИОНЕРСКИЙ"]
["КИТАЙСКИЙ","УКТУС"]
["КИЧИГИНСКАЯ","СОВХОЗ"]
["КИШИНЕВСКАЯ","С.СОРТИРОВКА"]
["КЛЕНОВАЯ","ШАРТАШ"]
["КЛИМОВСКАЯ","ЛЕЧЕБНЫЙ"]
["КЛУБНИЧНАЯ","САДОВЫЙ"]
["КЛУБНЫЙ","ШАБРОВСКИЙ"]
["КЛЮКВЕННАЯ","ШИРОКАЯ РЕЧКА"]
["КЛЮЧЕВСКАЯ","ВИЗ"]
["КЛЮЧИКИ","ГОРНЫЙ ЩИТ"]
["КНИЖНЫЙ","УРАЛМАШ"]
["КОБОЗЕВА","ЭЛЬМАШ"]
["КОВРОВЫЙ","Ю-З"]
["КОЗЛОВСКАЯ","САДОВЫЙ"]
["КОЗЛОВСКИЙ","САДОВЫЙ"]
["КОЙВИНСКИЙ","ЖБИ"]
["КОЛАБИНА","ЗАВОКЗАЛЬНЫЙ"]
["КОЛЛЕКТИВНЫЙ","ЧЕРМЕТ"]
["КОЛМОГОРОВА","ЗАРЕЧНЫЙ"]
["КОЛОДЕЗНЫЙ","ПТИЦЕФАБРИКА"]
["КОЛОКОЛЬНАЯ","УНЦ"]
["КОЛОМЕНСКИЙ","ИЗОПЛИТ"]
["КОЛОМИНСКИЙ","ИЗОПЛИТ"]
["КОЛОСКОВЫЙ","САДОВЫЙ"]
["КОЛХОЗНАЯ","ВЕРХНЕМАКАРОВО"]
["КОЛХОЗНАЯ","ГОРНЫЙ ЩИТ"]
["КОЛХОЗНАЯ","ИСТОК"]
["КОЛХОЗНИКОВ","ЕЛИЗАВЕТ"]
["КОЛЬЦЕВАЯ","УНЦ"]
["КОЛЬЦОВА","УРАЛМАШ"]
["КОЛЬЦОВО СТ.","КОЛЬЦОВО"]
["КОМБИНАТСКАЯ","СОВХОЗ"]
["КОМВУЗОВСКАЯ","ВТУЗГОРОДОК"]
["КОМЕТНАЯ","УРАЛМАШ"]
["КОМИНТЕРНА","ВТУЗГОРОДОК"]
["КОММУНАЛЬНАЯ","С.СОРТИРОВКА"]
["КОММУНАРОВ ПЛ.","ВИЗ"]
["КОММУНИСТИЧЕСКАЯ","УРАЛМАШ"]
["КОМСОМОЛЬСКАЯ","ГОРНЫЙ ЩИТ"]
["КОМСОМОЛЬСКАЯ","ПОЛЕВОДСТВО"]
["КОМСОМОЛЬСКАЯ","СЕВЕРКА"]
["КОМСОМОЛЬСКАЯ","ВТУЗГОРОДОК ДО №73"]
["КОМСОМОЛЬСКАЯ","ШАБРОВСКИЙ"]
["КОНДРАТЬЕВА","ЗАРЕЧНЫЙ"]
["КОНДУКТОРСКАЯ","ПИОНЕРСКИЙ"]
["КОНОТОПСКАЯ","ЗАВОКЗАЛЬНЫЙ"]
["КОНТРОЛЕРОВ","ЗАРЕЧНЫЙ"]
["КООПЕРАТИВНАЯ","ГОРНЫЙ ЩИТ"]
["КОПЕРНИКА","ВИЗ"]
["КОРЕЙСКИЙ","УКТУС"]
["КОРЕЛЬСКАЯ","КОМПРЕССОРНЫЙ"]
["КОРЕПИНА","ЭЛЬМАШ"]
["КОРИДОРНЫЙ","СИНИЕ КАМНИ"]
["КОРКИНСКАЯ","УКТУС"]
["КОРОЛЕНКО","ЦЕНТР"]
["КОРОТКИЙ","УКТУС"]
["КОСАРЕВА","ХИММАШ"]
["КОСМОДЕМЬЯНСКОЙ","ХИММАШ"]
["КОСМОНАВТОВ","ГОРНЫЙ ЩИТ"]
["КОСМОНАВТОВ","ИСТОК"]
["КОСМОНАВТОВ","СЕВЕРКА"]
["КОСМОНАВТОВ","ЧЕТ: ПИОНЕРСКИЙ - ДО №14"]
[{"$f":"A639","v":"КОСМОНАВТОВ"},"С №16 - ЭЛЬМАШ - ДО №10"]
["КОСМОНАВТОВ","С №102 - ПЫШМА"]
["КОСМОНАВТОВ","НЕЧЕТ: ЗАВОКЗАЛЬНЫЙ - ДО №17"]
["КОСМОНАВТОВ","С №19 - УРАЛМАШ - ДО №111"]
["КОСМОНАВТОВ","С №113 - ПЫШМА"]
["КОСОБРОДСКИЙ","СОВХОЗ"]
["КОСОГОРНАЯ","ШИРОКАЯ РЕЧКА"]
["КОСОТУРСКАЯ","ШИРОКАЯ РЕЧКА"]
["КОСТРОМСКАЯ","ИЗОПЛИТ"]
["КОСУЛИНСКИЙ","АВТОВОКЗАЛ"]
["КОСЬВИНСКИЙ","ЧЕРМЕТ"]
["КОТ.ПОСЕЛОК \"ШАРТАШ\"","ИЗОПЛИТ"]
["КОТЕЛЬНИКОВА","ВИЗ"]
["КОТЕЛЬЩИКОВ","ВИЗ"]
["КОТОВСКОГО","ВИЗ"]
["КОУРОВСКАЯ","С.СОРТИРОВКА"]
["КОЧЕГАРОВ","ПИОНЕРСКИЙ"]
["КОШЕВОГО","УКТУС"]
["КР.БОРЦОВ","УРАЛМАШ"]
["КР.ЗОРЬ","ВИЗ"]
["КР.КОМАНДИРОВ","ЭЛЬМАШ"]
["КР.ПАРТИЗАН","УРАЛМАШ"]
["КРАЕВОЙ","ЧЕРМЕТ"]
["КРАЙНИЙ","ЖБИ"]
["КРАНОВЩИКОВ","ЛЕЧЕБНЫЙ"]
["КРАПИВНЫЙ","ЭЛЬМАШ"]
["КРАСИНА","ПИОНЕРСКИЙ"]
["КРАСНАЯ","ГОРНЫЙ ЩИТ"]
["КРАСНАЯ ГОРКА","УКТУС"]
["КРАСНОАРМЕЙСКАЯ","ГОРНЫЙ ЩИТ"]
["КРАСНОАРМЕЙСКАЯ","ЦЕНТР"]
["КРАСНОАРМЕЙСКАЯ","ШАБРОВСКИЙ"]
["КРАСНОАРМЕЙСКИЙ","ГОРНЫЙ ЩИТ"]
["КРАСНОГВАРДЕЙСКАЯ","ГОРНЫЙ ЩИТ"]
["КРАСНОДАРСКАЯ","ШАРТАШ"]
["КРАСНОЗНАМЕННАЯ","УРАЛМАШ"]
["КРАСНОКАМСКАЯ","ВИЗ"]
["КРАСНОЛЕСЬЕ","УНЦ"]
["КРАСНОПОЛЯНСКИЙ","УРАЛМАШ"]
["КРАСНОПРУДНАЯ","НИЖНЕИСЕТСКИЙ"]
["КРАСНОУРАЛЬСКАЯ","ВИЗ"]
["КРАСНОУФИМСКАЯ","ВИЗ"]
["КРАСНОФЛОТЦЕВ","ЭЛЬМАШ"]
["КРАСНЫЙ","ЦЕНТР"]
["КРАУЛЯ","ВИЗ"]
["КРЕМНЕВЫЙ","ПИОНЕРСКИЙ"]
["КРЕНКЕЛЯ","ВИЗ"]
["КРЕСТИНСКОГО","БОТАНИЧЕСКИЙ"]
["КРЕСТЬЯНСКАЯ","УКТУС"]
["КРИСТАЛЬНАЯ","КОМПРЕССОРНЫЙ"]
["КРОКУСОВЫЙ","УРАЛМАШ"]
["КРОНШТАДСКАЯ","ПИОНЕРСКИЙ"]
["КРУГОВАЯ","РУДНЫЙ"]
["КРУЖЕВНАЯ","ИСТОК"]
["КРУПНОСОРТЩИКОВ","Н.СОРТИРОВКА"]
["КРУПСКОЙ","С.СОРТИРОВКА"]
["КРУТАЯ","ШАРТАШ"]
["КРУТИХИНСКИЙ","7 КЛЮЧЕЙ"]
["КРУТОЯРСКАЯ","ЗАРЕЧНЫЙ"]
["КРЫЛАТСКИЙ","КОЛЬЦОВО"]
["КРЫЛОВА","ВИЗ"]
["КРЫМСКИЙ","ИЗОПЛИТ"]
["КУЗИНСКИЙ","КАРАСЬЕОЗЕРСК"]
["КУЗНЕЦОВА","УРАЛМАШ"]
["КУЗНЕЧНАЯ","ЦЕНТР"]
["КУЗНЕЧНЫЙ","ПАЛКИНО"]
["КУЙБЫШЕВА","ЧЕТ:ЦЕНТР - №78"]
[{"$f":"A706","v":"КУЙБЫШЕВА"},"С №80 - ШАРТАШСКИЙ Р-К"]
["КУЙБЫШЕВА","НЕЧЕТ: ЦЕНТР - ДО №135"]
["КУЙБЫШЕВА","С №137 - ШАРТАШСКИЙ РЫНОК"]
["КУЛИБИНА","ВТУЗГОРОДОК"]
["КУЛЬТУРЫ","УРАЛМАШ"]
["КУНАРСКАЯ","С.СОРТИРОВКА"]
["КУРГАНСКАЯ","ЛЕЧЕБНЫЙ"]
["КУРОРТНАЯ","ИСТОК"]
["КУРЬИНСКИЙ","ВТУЗГОРОДОК"]
["КУСТОВОЙ","ЛЕЧЕБНЫЙ"]
["КУТУЗОВА","НИЖНЕИСЕТСКИЙ"]
["КУШВИНСКАЯ","ЗАРЕЧНЫЙ"]
["КЫТЛЫМСКАЯ","ШИРОКАЯ РЕЧКА"]
["КЫШТЫМСКИЙ","АВТОВОКЗАЛ"]
["ЛАВАНДОВАЯ","УРАЛМАШ"]
["ЛАГЕРНАЯ","ЛЕЧЕБНЫЙ"]
["ЛАГОДЫ","ВИЗ"]
["ЛАДОЖСКИЙ","АВТОВОКЗАЛ"]
["ЛАЗО","РУДНЫЙ"]
["ЛАЗУРНЫЙ","УРАЛМАШ"]
["ЛАНДЫШЕВАЯ","ШИРОКАЯ РЕЧКА"]
["ЛАТВИЙСКАЯ","КОМПРЕССОРНЫЙ"]
["ЛАТЫШСКАЯ","ЧЕРМЕТ"]
["ЛЕБЯЖИЙ","УРАЛМАШ"]
["ЛЕВАНЕВСКОГО","7 КЛЮЧЕЙ"]
["ЛЕВИТАНА","ВИЗ"]
["ЛЕВШИНСКИЙ","ВИЗ"]
["ЛЕЗГИНСКАЯ","ЧЕРМЕТ"]
["ЛЕНИНА","ВИЗ"]
["ЛЕНИНА","ГОРНЫЙ ЩИТ"]
["ЛЕНИНА","ИСТОК"]
["ЛЕНИНА","ЧЕТ:ЦЕНТР - ДО №58"]
[{"$f":"A738","v":"ЛЕНИНА"},"С №60 - ВТУЗГОРОДОК"]
["ЛЕНИНА","НЕЧЕТ: ЦЕНТР- ДО №81"]
["ЛЕНИНА","С №83 - ВТУЗГОРОДОК"]
["ЛЕНИНА","ШАБРОВСКИЙ"]
["ЛЕНИНГРАДСКАЯ","Ю-З"]
["ЛЕНСКИЙ","СИНИЕ КАМНИ"]
["ЛЕРМОНТОВА","ЦЕНТР"]
["ЛЕСНАЯ","Н.СОРТИРОВКА"]
["ЛЕСНАЯ","САДОВЫЙ"]
["ЛЕСНАЯ","СЕВЕРКА"]
["ЛЕСНАЯ","ЧУСОВСКОЕ ОЗЕРО"]
["ЛЕСНАЯ","ШАБРОВСКИЙ"]
["ЛЕСНАЯ","ШУВАКИШ"]
["ЛЕСНОЙ","ГОРНЫЙ ЩИТ"]
["ЛЕСОВОДОВ","ИЗОПЛИТ"]
["ЛЕСОВОДОВ","КАЛИНОВСКИЙ"]
["ЛЕСОПИЛЬЩИКОВ","ЗАРЕЧНЫЙ"]
["ЛЕСОРУБОВ","СЕВЕРКА"]
["ЛЕТНЯЯ","ЛЕЧЕБНЫЙ"]
["ЛЕТЧИКОВ","ЗАВОКЗАЛЬНЫЙ"]
["ЛЕЧЕБНАЯ","ЛЕЧЕБНЫЙ"]
["ЛЕЧЕБНЫЙ","ЛЕЧЕБНЫЙ"]
["ЛЕЧЕБНЫЙ","СОВХОЗ"]
["ЛИНЕЙНАЯ","ВИЗ"]
["ЛИСТВЕННАЯ","ШИРОКАЯ РЕЧКА"]
["ЛИСТОПАДНАЯ","ЧЕРМЕТ"]
["ЛИТЕЙЩИКОВ","ВИЗ"]
["ЛИТОВСКАЯ","КОМПРЕССОРНЫЙ"]
["ЛОБАЧЕВСКОГО","ВТУЗГОРОДОК"]
["ЛОБВИНСКАЯ","ПАЛКИНО"]
["ЛОБКОВА","ЭЛЬМАШ"]
["ЛОДЫГИНА","ВТУЗГОРОДОК"]
["ЛОЗОВОЙ","НИЖНЕИСЕТСКИЙ"]
["ЛОМОНОСОВА","УРАЛМАШ"]
["ЛОЦМАНОВЫХ","ВИЗ"]
["ЛУГАНСКАЯ","АВТОВОКЗАЛ"]
["ЛУГОВАЯ","ВЕРХНЕМАКАРОВО"]
["ЛУГОВАЯ","МЕДНЫЙ"]
["ЛУГОВАЯ","САДОВЫЙ"]
["ЛУГОВАЯ","ШАБРОВСКИЙ"]
["ЛУКИНЫХ","УРАЛМАШ"]
["ЛУНАЧАРСКОГО","ЧЕТ: ЦЕНТР"]
[{"$f":"A780","v":"ЛУНАЧАРСКОГО"},"НЕЧЕТ: ЦЕНТР - ДО №215"]
["ЛУНАЧАРСКОГО","С №217 - ПАРКОВЫЙ"]
["ЛУНАЧАРСКОГО","ШАБРОВСКИЙ"]
["ЛУННАЯ","САДОВЫЙ"]
["ЛУЧЕВАЯ","ЛЕЧЕБНЫЙ"]
["ЛЫЖНИКОВ","УКТУС"]
["ЛЯЛИНСКАЯ","ВИЗ"]
["ЛЯПУСТИНА","ЧЕРМЕТ"]
["М.АВЕЙДЕ","ЦЕНТР"]
["М.-СИБИРЯКА","ЦЕНТР"]
["МАЙКОПСКАЯ","ЗАВОКЗАЛЬНЫЙ"]
["МАЙСКАЯ","ШИРОКАЯ РЕЧКА"]
["МАКАРЬЕВСКАЯ","МЕДНЫЙ"]
["МАЛАХИТОВЫЙ","ЧЕРМЕТ"]
["МАЛОГОРОДСКАЯ","КАРАСЬЕОЗЕРСК"]
["МАЛОИСТОКСКАЯ","КОЛЬЦОВО"]
["МАЛЫЙ","ЭЛЬМАШ"]
["МАЛЫЙ КОННЫЙ","ВИЗ"]
["МАЛЫШЕВА","ЧЕТ : ВИЗ - ДО №6"]
[{"$f":"A799","v":"МАЛЫШЕВА"},"С №8 - ЦЕНТР - ДО №120"]
["МАЛЫШЕВА","С №122 - ВТУЗГОРОДОК"]
["МАЛЫШЕВА","НЕЧЕТ: ВИЗ - ДО №5"]
["МАЛЫШЕВА","С №7 -ЦЕНТР- ДО 99"]
["МАЛЫШЕВА","С №101 - ВТУЗГОРОДОК"]
["МАНЕВРОВАЯ","С.СОРТИРОВКА"]
["МАНЧАЖСКАЯ","Ю-З"]
["МАРАТА","ЗАРЕЧНЫЙ"]
["МАРИУПОЛЬСКАЯ","СИНИЕ КАМНИ"]
["МАРТОВСКАЯ","ЕЛИЗАВЕТ"]
["МАСТЕРОВ","ЗАВОКЗАЛЬНЫЙ"]
["МАТРОСОВА","ШАБРОВСКИЙ"]
["МАТРОССКАЯ","7 КЛЮЧЕЙ"]
["МАХНЕВА","ЗАРЕЧНЫЙ"]
["МАШИНИСТОВ","ВОКЗАЛЬНЫЙ"]
["МАШИННАЯ","АВТОВОКЗАЛ"]
["МАШИНОСТРОИТЕЛЕЙ","УРАЛМАШ"]
["МАЯКОВСКОГО","ПИОНЕРСКИЙ"]
["МЕДИКОВ","СОВХОЗ"]
["МЕДИЦИНСКАЯ","УРАЛМАШ"]
["МЕДНАЯ","МЕДНЫЙ"]
["МЕДНЫЙ","МЕДНЫЙ"]
["МЕЖЕВАЯ","УКТУС"]
["МЕЛИОРАТОРОВ","ГОРНЫЙ ЩИТ"]
["МЕЛЬКОВСКАЯ","ЦЕНТР"]
["МЕЛЬКОВСКИЙ","ЗАВОКЗАЛЬНЫЙ"]
["МЕЛЬНИКОВА","ВИЗ"]
["МЕНДЕЛЕЕВА","ПИОНЕРСКИЙ"]
["МЕНЖИНСКОГО","ПИОНЕРСКИЙ"]
["МЕСТНЫЙ","КОЛЬЦОВО"]
["МЕТАЛЛУРГОВ","ВИЗ"]
["МЕХАНИЧЕСКИЙ","ЭЛЬМАШ"]
["МИАССКАЯ","УКТУС"]
["МИЛИЦЕЙСКАЯ","ПИОНЕРСКИЙ"]
["МИНЕРАЛЬНАЯ","С.СОРТИРОВКА"]
["МИНОМЕТЧИКОВ","ЧЕТ: Н.СОРТИРОВКА - ДО №32"]
[{"$f":"A835","v":"МИНОМЕТЧИКОВ"},"С №34 - С.СОРТИРОВКА"]
["МИНОМЕТЧИКОВ","НЕЧЕТ: Н.СОРТИРОВКА - ДО №11"]
["МИНОМЕТЧИКОВ","С №13 - С.СОРТИРОВКА"]
["МИРА","ВТУЗГОРОДОК"]
["МИРА","СЕВЕРКА"]
["МИРА","ЧУСОВСКОЕ ОЗЕРО"]
["МИРА","ШАБРОВСКИЙ"]
["МИЧУРИНА","ЧЕТ: ЦЕНТР - ДО \"204"]
[{"$f":"A843","v":"МИЧУРИНА"},"С №206 - ПАРКОВЫЙ"]
["МИЧУРИНА","НЕЧЕТ: ЦЕНТР - ДО №199"]
["МИЧУРИНА","С №201 - ПАРКОВЫЙ"]
["МИЧУРИНА","ШИРОКАЯ РЕЧКА"]
["МНОГОСТАНОЧНИКОВ","ХИММАШ"]
["МОЖАЙСКОГО","УКТУС"]
["МОЛЕБКА","ПЫШМА"]
["МОЛОДЕЖИ","УРАЛМАШ"]
["МОЛОДЕЖНАЯ","ИСТОК"]
["МОЛОДОГВАРДЕЙЦЕВ","УКТУС"]
["МОЛОТОБОЙЦЕВ","ЕЛИЗАВЕТ"]
["МОЛОЧНЫЙ","ИСТОК"]
["МОЛЬЕРА","ЦЕНТР"]
["МОНГОЛЬСКАЯ","Н.СОРТИРОВКА"]
["МОНЕТНЫЙ","ПАЛКИНО"]
["МОНТАЖНИКОВ","С.СОРТИРОВКА"]
["МОНТЕРСКАЯ","ЧЕРМЕТ"]
["МОПРА","ЛЕЧЕБНЫЙ"]
["МОРДВИНСКИЙ","АВТОВОКЗАЛ"]
["МОСКВИНА","РУДНЫЙ"]
["МОСКОВСКАЯ","ГОРНЫЙ ЩИТ"]
["МОСКОВСКАЯ","ЧЕТ: ВИЗ - ДО №32"]
[{"$f":"A865","v":"МОСКОВСКАЯ"},"С №34 - Ю-З"]
["МОСКОВСКАЯ","НЕЧЕТ: ЦЕНТР - ДО №191"]
["МОСКОВСКАЯ","С №193 - АВТОВОКЗАЛ"]
["МОСКОВСКИЙ ТРАКТ","ВИЗ"]
["МОСКОВСКИЙ ТРАКТ 7 КМ","ВИЗ"]
["МОСКОВСКИЙ ТРАКТ 8 КМ","ВИЗ"]
["МОСКОВСКИЙ ТРАКТ 89 КМ","ВИЗ"]
["МОСТОВАЯ","ЧЕТ: СОВХОЗ"]
[{"$f":"A873","v":"МОСТОВАЯ"},"НЕЧЕТ: УНЦ"]
["МОСТОВКА","ИСТОК"]
["МОХОВОЙ","УРАЛМАШ"]
["МРАМОРСКАЯ","УКТУС"]
["МАГУЙСКИЙ","ЧЕРМЕТ"]
["МУРАТОВСКИЙ","УКТУС"]
["МУРЗИНСКАЯ","КАЛИНОВСКИЙ"]
["МУРМАНСКАЯ","ЖБИ"]
["МУСОРГКОГО","ЧЕРМЕТ"]
["МЯТНАЯ","ШИРОКАЯ РЕЧКА"]
["Н.НИКОНОВА","ЦЕНТР"]
["Н.ОСТРОВСКОГО","АВТОВОКЗАЛ"]
["НАБЕРЕЖНАЯ","САДОВЫЙ"]
["НАБЕРЕЖНАЯ","СЕВЕРКА"]
["НАБЕРЕЖНЫЙ","СЕВЕРКА"]
["НАГОРНАЯ","ВИЗ"]
["НАГОРНАЯ","ГОРНЫЙ ЩИТ"]
["НАДЕЖДИНСКАЯ","ЧЕТ: Н.СОРТИРОВКА"]
[{"$f":"A891","v":"НАДЕЖДИНСКАЯ"},"НЕЧЕТ: С.СОРТИРОВКА"]
["НАР.ВОЛИ","ЧЕТ: ЦЕНТР - ДО №72"]
[{"$f":"A893","v":"НАР.ВОЛИ"},"С №74 - ШАРТАШСКИЙ Р-К"]
["НАР.ВОЛИ","НЕЧЕТ: ЦЕНТР - ДО №111"]
["НАР.ВОЛИ","С №113 - ШАТРАШСКИЙ Р-К"]
["НАР.ФРОНТА","УРАЛМАШ"]
["НАРЕЗНОЙ","ИЗОПЛИТ"]
["НАРОДНЫЙ","АВТОВОКЗАЛ"]
["НАСОСНЫЙ","ШАРТАШСКИЙ РЫНОК"]
["НАСЫПНАЯ","СИНИЕ КАМНИ"]
["НЕВЬЯНСКИЙ","ВОКЗАЛЬНЫЙ"]
["НЕЙВИНСКИЙ","ИЗОПЛИТ"]
["НЕКРАСОВА","ВОКЗАЛЬНЫЙ"]
["НЕКТАРНАЯ","УРАЛМАШ"]
["НЕМАНСКАЯ","СОВХОЗ"]
["НИЖНЯЯ","ПАЛКИН.ТОРФЯНИК"]
["НИЗОВОЙ","ЛЕЧЕБНЫЙ"]
["НИКИТИНА","УРАЛМАШ"]
["НИКОЛЬСКИЙ","УРАЛМАШ"]
["НОВАТОРОВ","УРАЛМАШ"]
["НОВАЯ","КОМПРЕССОРНЫЙ"]
["НОВАЯ","САДОВЫЙ"]
["НОВАЯ","СЕВЕРКА"]
["НОВАЯ","ШУВАКИШ"]
["НОВГОРОДСКИЙ","ЭЛЬМАШ"]
["НОВГОРОДЦЕВОЙ","ЖБИ"]
["НОВИНСКАЯ","ЕЛИЗАВЕТ"]
["НОВОКОЛЬЦОВСКАЯ","КОЛЬЦОВО"]
["НОВОКОМБИНАТСКАЯ","ЧЕРМЕТ"]
["НОВООЗЕРНАЯ","СОВХОЗ"]
["НОВОПАШЕНСКИЙ","ЕЛИЗАВЕТ"]
["НОВОПАШИНСКИЙ","ЕЛИЗАВЕТ"]
["НОВОСЕЛОВ","КОЛЬЦОВО"]
["НОВОСЕЛОВ","ШИРОКАЯ РЕЧКА"]
["НОВОСИБИРСКАЯ","ЧЕРМЕТ"]
["НОВОСИБИРСКАЯ ВТОРАЯ","ЧЕРМЕТ"]
["НОВОПАССКАЯ","ЕЛИЗАВЕТ"]
["НОВОСТРОЯ","ЕЛИЗАВЕТ"]
["НОВЫЙ ПОСЕЛОК","ЛЕЧЕБНЫЙ"]
["НОРИЛЬСКАЯ","ШАРТАШ"]
["ОБЛЕПИХОВЫЙ","УНЦ"]
["ОБОЗНЫЙ","ШАРТАШ"]
["ОБОРОНЫ ПЛ.","ПАРКОВЫЙ"]
["ОБОРОНЫ ПЛ.","ЦЕНТР"]
["ОБРОШИНСКАЯ","ПАЛКИНО"]
["ОБУВЩИКОВ","Ю-З"]
["ОБУХОВСКАЯ","ИСТОК"]
["ОБХОНОЙ","ЧЕРМЕТ"]
["ОВОЩНАЯ","ИСТОК"]
["ОГАРЕВА","Ю-З"]
["ОГОРОДНЫЙ","ЗАВОКЗАЛЬНЫЙ"]
["ОДИНАРКА","ПАЛКИНО"]
["ОЗЕРНАЯ","ВЕРХНЕМАКАРОВО"]
["ОЗЕРНАЯ","КАРАСЬЕОЗЕРСК"]
["ОЗЕРНАЯ","ЧУСОВСКОЕ ОЗЕРО"]
["ОЗЕРНЫЙ","ИСТОК"]
["ОКОЛЬНЫЙ","ЛЕЧЕБНЫЙ"]
["ОКОПНЫЙ","АВТОВОКЗАЛ"]
["ОКРАИННАЯ","ЧЕРМЕТ"]
["ОКРУЖНАЯ","ЧЕРМЕТ"]
["ОКТ.РЕВОЛЮЦИИ","ЦЕНТР"]
["ОКТЯБРЬСКАЯ","ИСТОК"]
["ОКТЯБРЬСКАЯ","ГОРНЫЙ ЩИТ"]
["ОКТЯБРЬСКАЯ ПЛ.","ЦЕНТР"]
["ОКТЯБРЯТ","ХИММАШ"]
["ОЛЬГИНСКАЯ","ЕЛИЗАВЕТ"]
["ОЛЬХОВАЯ","СЕВЕРКА"]
["ОЛЬХОВСКАЯ","Н.СОРТИРОВКА"]
["ОМСКАЯ","ПИОНЕРСКИЙ"]
["ОНЕЖСКИЙ","АВТОВОКЗАЛ"]
["ОНУФРИЕВА","Ю-З"]
["ОПАЛИХИНСКАЯ","ЗАРЕЧНЫЙ"]
["ОПЫТНАЯ","КОЛЬЦОВО"]
["ОРБИТАЛЬНАЯ","УРАЛМАШ"]
["ОРДЕНОНОСЦЕВ","ХИММАШ"]
["ОРДЖОНИКИДЗЕ","САДОВЫЙ"]
["ОРДЖОНИКИДЗЕ","УРАЛМАШ"]
["ОРДЖОНИКИДЗЕ","ШАБРОВСКИЙ"]
["ОРЛОВСКАЯ","УРАЛМАШ"]
["ОСЕДЛАЯ","ШИРОКАЯ РЕЧКА"]
["ОСЕННЯЯ","ХИММАШ"]
["ОСИПЕНКО","ШАРТАШ"]
["ОСНОВИНСКАЯ","ПИОНЕРСКИЙ"]
["ОСОАВИАХИМА","УРАЛМАШ"]
["ОСОКОВАЯ","ШИРОКАЯ РЕЧКА"]
["ОСТРОВСКОГО","АВТОВОКЗАЛ"]
["ОТДЕЛЬНЫЙ","ВТУЗГОРОДОК"]
["ОТДЫХА","ШАРТАШ"]
["ОТПУСКНИКОВ","УКТУС"]
["ОТРАДНАЯ","ВИЗ"]
["ОХОТНИКОВ","ШИРОКАЯ РЕЧКА"]
["ОХОТНИКОВ","САДОВЫЙ"]
["ОХОТСКИЙ","ПТИЦЕФАБРИКА"]
["П.ЛУМУМБЫ","ЧЕРМЕТ"]
["П.ТОЛЛЬЯТИ","Ю-З"]
["ПАВЛОВА","УКТУС"]
["ПАВЛОВСКАЯ","УРАЛМАШ"]
["ПАВЛОДАРСКАЯ","УКТУС"]
["ПАЛИСАДНАЯ","ЧЕРМЕТ"]
["ПАЛКИНО СТ.","ПАЛКИНО"]
["ПАЛКИНСКИЙ","7 КЛЮЧЕЙ"]
["ПАМИРСКАЯ","ПИОНЕРСКИЙ"]
["ПАНЕЛЬНАЯ","ЖБИ"]
["ПАНФИЛОВЦЕВ","УКТУС"]
["ПАПАНИНА","ВИЗ"]
["ПАРКОВАЯ","ШАБРОВСКИЙ"]
["ПАРКОВЫЙ","ИСТОК"]
["ПАРКОВЫЙ","ПИОНЕРСКИЙ"]
["ПАРНИКОВАЯ","ЭЛЬМАШ"]
["ПАРОВОЗНИКОВ","С.СОРТИРОВКА"]
["ПАРТИЗАНСКАЯ","ГОРНЫЙ ЩИТ"]
["ПАРХОМЕНКО","НИЖНЕИСЕТСКИЙ"]
["ПАТРИОТОВ","УКТУС"]
["ПАТРУШИХИНСКАЯ","МЕДНЫЙ"]
["ПЕДАГОГИЧЕСКАЯ","ВТУЗГОРОДОК"]
["ПЕНЗЕНСКАЯ","7 КЛЮЧЕЙ"]
["ПЕРВОМАЙСКАЯ","ЧЕТ: ЦЕНТР - ДО №64"]
[{"$f":"A1008","v":"ПЕРВОМАЙСКАЯ"},"С №66 - ВТУЗГОРОДОК"]
["ПЕРВОМАЙСКАЯ","НЕЧЕТ: ЦЕНТР - ДО №65"]
["ПЕРВОМАЙСКАЯ","С №67 ДО -ВТУЗГОРОДОК"]
["ПЕРВОМАЙСКИЙ","ШАБРОВСКИЙ"]
["ПЕРВОЦВЕТНАЯ","САДОВЫЙ"]
["ПЕРВЫЙ","СИНИЕ КАМНИ"]
["ПЕРЕХОДНЫЙ","АВТОВОКЗАЛ"]
["ПЕРМСКАЯ","КАРАСЬЕОЗЕРСК"]
["ПЕСКИ","ШАРТАШ"]
["ПЕСТЕРОВСКИЙ","ЦЕНТР"]
["ПЕХОТИНЦЕВ","Н.СОРТИРОВКА"]
["ПЕЧАТНИКОВ","Ю-З"]
["ПЕЧЕРСКАЯ","ВОКЗАЛЬНЫЙ"]
["ПЕШЕХОДНЫЙ","ШАРТАШ"]
["ПИКЕТНАЯ","ШИРОКАЯ РЕЧКА"]
["ПИЛОТНАЯ","ЗАВОКЗАЛЬНЫЙ"]
["ПИЛЬЩИКОВ","КОЛЬЦОВО"]
["ПИОНЕРОВ","ГОРНЫЙ ЩИТ"]
["ПИОНЕРОВ","ПИОНЕРСКИЙ"]
["ПИОНЕРСКАЯ","ГОРНЫЙ ЩИТ"]
["ПИОНЕРСКИЙ","ШАБРОВСКИЙ"]
["ПИОНОВАЯ","УРАЛМАШ"]
["ПИРОГОВА","ВИЗ"]
["ПИСАРЕВА","НИЖНЕИСЕТСКИЙ"]
["ПИТОМНИК","ПАЛКИНО"]
["ПИХТОВАЯ","ШИРОКАЯ РЕЧКА"]
["ПЛАВИЛЬЩИКОВ","ЗАРЕЧНЫЙ"]
["ПЛАНЕРИСТОВ","7 КЛЮЧЕЙ"]
["ПЛАНЕТНАЯ","УРАЛМАШ"]
["ПЛЕХАНОВА","ЗАРЕЧНЫЙ"]
["ПЛОДОРОДИЯ","ЕЛИЗАВЕТ"]
["ПЛОТНИКОВ","ВИЗ"]
["ПОБЕДЫ","САДОВЫЙ"]
["ПОБЕДЫ","УРАЛМАШ"]
["ПОВОРОТНЫЙ","СИБИРСКИЙ"]
["ПОГРАНИЧНИКОВ","КАЛИНОВСКИЙ"]
["ПОДГОРНАЯ","ЗАВОКЗАЛЬНЫЙ"]
["ПОДРЯДНЫЙ","НИЖНЕИСЕТСКИЙ"]
["ПОЖАРНЫХ","ЛЕЧЕБНЫЙ"]
["ПОКОСНАЯ","САДОВЫЙ"]
["ПОКРОСКАЯ","ИСТОК"]
["ПОЛДНЕВАЯ","ЧЕРМЕТ"]
["ПОЛЕВАЯ","СОВХОЗ"]
["ПОЛЕВАЯ","УРАЛМАШ"]
["ПОЛЕВАЯ","ШАБРОВСКИЙ"]
["ПОЛЕВСКАЯ","ВИЗ"]
["ПОЛЕЖАЕВОЙ","ЗАРЕЧНЫЙ"]
["ПОЛЗУНОВА","ЭЛЬМАШ"]
["ПОЛИМЕРНЫЙ","ЗАВОКЗАЛЬНЫЙ"]
["ПОЛКОВАЯ","СОВХОЗ"]
["ПОЛОВОДНЫЙ","НИЖНЕИСЕТСКИЙ"]
["ПОЛТАВСКАЯ","Ю-З"]
["ПОЛЮСНАЯ","7 КЛЮЧЕЙ"]
["ПОЛЯНКА","УНЦ"]
["ПОЛЯРНИКОВ","АВТОВОКЗАЛ"]
["ПОПОВА","ЧЕТ: ЦЕНТР - ДО №26"]
[{"$f":"A1064","v":"ПОПОВА"},"С №28 - ВИЗ"]
["ПОПОВА","НЕЧЕТ: ЦЕНТР - ДО №31"]
["ПОПОВА","С №33 - ВИЗ"]
["ПОРОШИНСКАЯ","КОМПРЕССОРНЫЙ"]
["ПОСАДСКАЯ","Ю-З"]
["ПОСЕЛКОВЫЙ","КОЛЬЦОВО"]
["ПОСТОВАЯ","ЛЕЧЕБНЫЙ"]
["ПОСТОВСКОГО","Ю-З"]
["ПОТОЧНЫЙ","ВИЗ"]
["ПОХОДНАЯ","УКТУС"]
["ПОЧТОВЫЙ","ЦЕНТР"]
["ПРЕДЕЛЬНАЯ","СОВХОЗ"]
["ПРИБАЛТИЙСКАЯ","КОМПРЕССОРНЫЙ"]
["ПРИБРЕЖНЫЙ","ХИММАШ"]
["ПРИВЕТЛИВЫЙ","ИСТОК"]
["ПРИВОКЗАЛЬНАЯ","САДОВЫЙ"]
["ПРИВОКЗАЛЬНЫЙ","ШУВАКИШ"]
["ПРИВОЛЬНАЯ","ИСТОК"]
["ПРИГОРОДНАЯ","СОВХОЗ"]
["ПРИДОРОЖНАЯ","СУЛИМ.ТОРФЯНИК"]
["ПРИИСКОВАЯ","ШАБРОВСКИЙ"]
["ПРИИСКОВАЯ","ШАРТАШ"]
["ПРИИСКОВЫЙ","ШАБРОВСКИЙ"]
["ПРИРЕЧНЫЙ","АВТОВОКЗАЛ"]
["ПРОЕЗЖАЯ","ШАРТАШ"]
["ПРОЕЗЖИЙ","СЕВЕРКА"]
["ПРОИЗВОДСТВЕННЫЙ","ВОКЗАЛЬНЫЙ"]
["ПРОКАТЧИКОВ","Ю-З"]
["ПРОЛЕТАРСКАЯ","ЦЕНТР"]
["ПРОМЫСЛОВАЯ","ЧЕРМЕТ"]
["ПРОМЫШЛЕННЫЙ","ЭЛЬМАШ"]
["ПРОНИНОЙ","УКТУС"]
["ПРОСТОРНАЯ","УКТУС"]
["ПРОФСОЮЗНАЯ","ХИММАШ"]
["ПРОХЛАДНАЯ","ИСТОК"]
["ПРОХОДНОЙ","Н.СОРТИРОВКА"]
["ПРОХОЖАЯ","ШИРОКАЯ РЕЧКА"]
["ПРУДОВАЯ","ВОКЗАЛЬНЫЙ"]
["ПРЯМОЙ","ХИММАШ"]
["ПТИЦЕВОДОВ","ПТИЦЕФАБРИКА"]
["ПУГАЧЕВСКИЙ","ЗАВОКЗАЛЬНЫЙ"]
["ПУТЕВКА","СИБИРСКИЙ"]
["ПУШКИНА","ИСТОК"]
["ПУШКИНА","ЦЕНТР"]
["ПШЕНИЧНЫЙ","ШИРОКАЯ РЕЧКА"]
["ПЫШМИНСКАЯ","ШУВАКИШ"]
["ПЯТЫЙ","СИНИЕ КАМНИ"]
["Р.ЛЮКСЕМБУРГ","ЦЕНТР"]
["РАБКОРОВ","УРАЛМАШ"]
["РАБОЧАЯ","ШАБРОВСКИЙ"]
["РАБОЧЕЙ МОЛОДЕЖИ","ЧЕТ: ЦЕНТР - ДО №44"]
[{"$f":"A1115","v":"РАБОЧЕЙ МОЛОДЕЖИ"},"С №46 - ВИЗ"]
["РАБОЧЕЙ МОЛОДЕЖИ","НЕЧЕТ: ЦЕНТР - ДО №43"]
["РАБОЧЕЙ МОЛОДЕЖИ","С №51 - ВИЗ"]
["РАБОЧИХ","ВИЗ"]
["РАДИЩЕВА","ЧЕТ: ЦЕНТР - ДО №38"]
[{"$f":"A1120","v":"РАДИЩЕВА"},"С №40 - ВИЗ"]
["РАДИЩЕВА","НЕЧЕТ: ЦЕНТР - ДО №49"]
["РАДИЩЕВА","С №51 - Ю-З"]
["РАДУЖНАЯ","ЛЕЧЕБНЫЙ"]
["РАЕВСКОГО","ПИОНЕРСКИЙ"]
["РАЗДЕЛЬНАЯ","ИСТОК"]
["РАЗДОЛЬНАЯ","ИСТОК"]
["РАЗЛИВНАЯ","СОВХОЗ"]
["РАЗРЯДНАЯ","ХИММАШ"]
["РАЗЪЕЗДНОЙ","КОЛЬЦОВО"]
["РАКЕТНАЯ","КОЛЬЦОВО"]
["РАКИТОВАЯ","УРАЛМАШ"]
["РАСКОВОЙ","Ю-З"]
["РАССВЕТНАЯ","ЖБИ"]
["РАСТОЧНАЯ","С.СОРТИРОВКА"]
["РЕАКИВНАЯ","КОЛЬЦОВО"]
["РЕВДИНСКИЙ","ЦЕНТР"]
["РЕВОЛЮЦИИ","НИЖНЕИСЕТСКИЙ"]
["РЕЖЕВСКИЙ","ЛЕЧЕБНЫЙ"]
["РЕЖИМНЫЙ","ЧЕРМЕТ"]
["РЕЗЕРВНАЯ","ШИРОКАЯ РЕЧКА"]
["РЕЙСОВАЯ","КОЛЬЦОВО"]
["РЕКОРДНЫЙ","ШАРТАШ"]
["РЕМЕСЛЕННЫЙ","ЧЕРМЕТ"]
["РЕМОНТНЫЙ","ИСТОК"]
["РЕПИНА","ЧЕТ:ВИЗ - №2"]
[{"$f":"A1146","v":"РЕПИНА"},"С №4 - Ю-З"]
["РЕПИНА","С №42 - ВИЗ"]
["РЕПИНА","НЕЧЕТ: ВИЗ"]
["РЕСПУБЛИКАНСКАЯ","УРАЛМАШ"]
["РЕЧНАЯ","САДОВЫЙ"]
["РЕШЕТНИКОВА","Ю-З"]
["РЕШЕТСКАЯ","7 КЛЮЧЕЙ"]
["РЖАВЕЦ","КОМПРЕССОРНЫЙ"]
["РЖАНОЙ","САДОВЫЙ"]
["РЖЕВСКАЯ","УРАЛМАШ"]
["РИЖСКИЙ","ЧЕРМЕТ"]
["РИСТЛАНДА","ЭЛЬМАШ"]
["РОДНИКОВЫЙ","КОЛЬЦОВО"]
["РОДОНИТОВАЯ","БОТАНИЧЕСКИЙ"]
["РОЖДЕСТВЕНСКАЯ","ИСТОК"]
["РОМАНТИЧЕСКАЯ","САДОВЫЙ"]
["РОМАШКОВЫЙ","ИСТОК"]
["РОССИЙСКАЯ","СЕВЕРКА"]
["РОСЯНКА","НИЖНЕИСЕТСКИЙ"]
["РОТНАЯ","ЧЕРМЕТ"]
["РОЩИНСКАЯ","УКТУС"]
["РУБЕЖНАЯ","ШИРОКАЯ РЕЧКА"]
["РУБИНОВАЯ","СУЛИМ.ТОРФЯНИК"]
["РУДЯНСКИЙ","РУДНЫЙ"]
["РУЖЕЙНЫЙ","ПИОНЕРСКИЙ"]
["РУЧЕЙНАЯ","ШИРОКАЯ РЕЧКА"]
["РЫБАКОВ","ШАРТАШ"]
["РЫБИНСКИЙ","7 КЛЮЧЕЙ"]
["РЫБНАЯ","ШАРТАШ"]
["РЫБОВОДОВ","ГОРНЫЙ ЩИТ"]
["РЯБИНОВАЯ","ПЫШМА"]
["РЯЗАНСКИЙ","ЧЕРМЕТ"]
["С.БЕЛЫХ","АВТОВОКЗАЛ"]
["С.ДЕРЯБИНОЙ","Ю-З"]
["С.КОВАЛЕВСКОЙ","ВТУЗГОРОДОК"]
["С.МОРОЗОВОЙ","ЦЕНТР"]
["С.ПЕРОВСКОЙ","Н.СОРТИРОВКА"]
["С.РАЗИНА","ИСТОК"]
["С.РАЗИНА","ЧЕТ: ЦЕНТР - ДО №26"]
[{"$f":"A1185","v":"С.РАЗИНА"},"С №28 - АВОВОКЗЛ"]
["С.РАЗИНА","НЕЧЕТ: ЦЕНТР - ДО №39"]
["С.РАЗИНА","С №41 - АВТОВОКЗАЛ"]
["САРГИНСКАЯ","ШУВАКИШ"]
["САДОВАЯ","ГОРНЫЙ ЩИТ"]
["САДОВАЯ","ПИОНЕРСКИЙ"]
["САДОВАЯ","ШАБРОВСКИЙ"]
["САДОВОДОВ","Ю-З"]
["САЖИНСКАЯ","ПТИЦЕФАБРИКА"]
["САЗОНОВА","ЗАРЕЧНЫЙ"]
["САККО И ВАНЦЕТТИ","ЦЕНТР"]
["САЛДИНСКАЯ","НИЖНЕИСЕТСКИЙ"]
["САМАРКАНДСКИЙ","ХИММАШ"]
["САМОЛЕТНАЯ","УКТУС"]
["САМОЛЕТНЫЙ","ШАБРОВСКИЙ"]
["САМОЦВЕТНЫЙ","БОТАНИЧЕСКИЙ"]
["САНАТОРНАЯ","ЧЕРМЕТ"]
["САПЕРОВ","ЦЕНТР"]
["САРАНИНСКИЙ","ЕЛИЗАВЕТ"]
["САРАНИНСКИЙ","ЧЕРМЕТ"]
["САХАЛИНСКАЯ","ПИОНЕРСКИЙ"]
["СВАРЩИКОВ","ВИЗ"]
["СВЕРДЛОВА","ГОРНЫЙ ЩИТ"]
["СВЕРДЛОВА","ЦЕНТР"]
["СВЕРДЛОВСКАЯ","ШУВАКИШ"]
["СВЕТЛОРЕЧЕНСКАЯ","ШИРОКАЯ РЕЧКА"]
["СВЕТЛЫЙ","ШАРТАШ"]
["СВИРСКИЙ","ШАРТАШ"]
["СВОБОДЫ","ЧЕТ: ЗАРЕЧНЫЙ - ДО №22"]
[{"$f":"A1214","v":"СВОБОДЫ"},"С №24 - ВОКЗАЛЬНЫЙ"]
["СВОБОДЫ","НЕЧЕТ: ЗАРЕЧНЫЙ - ДО №29"]
["СВОБОДЫ","С №31 - ВОКЗАЛЬНЫЙ"]
["СВОБОДЫ","ШИРОКАЯ РЕЧКА"]
["СВОБОДЫ","ШУВАКИШ"]
["СВЯЗНОЙ","УРАЛМАШ"]
["СВЯТОГОРСКАЯ","ШИРОКАЯ РЕЧКА"]
["СЕВ.ХИММАШ","ХИММАШ"]
["СЕВАСТОПОЛЬСКАЯ","ШАРТАШ"]
["СЕВЕРНАЯ","ШИРОКАЯ РЕЧКА"]
["СЕВЕРНАЯ ОКОЛИЦА","САДОВЫЙ"]
["СЕВЕРНЫЙ","ВИЗ"]
["СЕВЕРНЫХ РАДИСТОВ","7 КЛЮЧЕЙ"]
["СЕВЕРСКИЙ","ЧЕРМЕТ"]
["СЕДОВА","ЧЕТ: Н.СОРТИРОВКА - ДО №42"]
[{"$f":"A1229","v":"СЕДОВА"},"С №44 - С.СОРТИРОВКА"]
["СЕДОВА","НЕЧЕТ: Н.СОРТИРОВКА - ДО №27"]
["СЕДОВА","С №29 - СОРТИРОВКА"]
["СЕДЬМОЙ","СИНИЕ КАМНИ"]
["СЕЛЬКОРОВСКАЯ","ЧЕРМЕТ"]
["СЕЛЬСКАЯ","ИСТОК"]
["СЕМНАДЦАТЫЙ КМ","КОЛЬЦОВО"]
["СЕННАЯ","УРАЛМАШ"]
["СЕНТЯБРЬСКИЙ","САДОВЫЙ"]
["СЕРГИНСКИЙ","УКТУС"]
["СЕРОВА","ШАБРОВСКИЙ"]
["СЕРПУХОВСКИЙ","ЭЛЬМАШ"]
["СИБ.ТРАКТ","КОМПРЕССОРНЫЙ"]
["СИБ. ТРАКТ","ЧЕТ: ШАРТАШСКИЙ РЫНОК - ДО №18"]
[{"$f":"A1243","v":"СИБ. ТРАКТ"},"С №20 - СИБИРСКИЙ - ДО №38"]
["СИБ. ТРАКТ","С №40 - ЛЕЧЕБНЫЙ"]
["СИБ. ТРАКТ","НЕЧЕТ: ШАРТАШСКИЙ РЫНОК - №19"]
["СИБ. ТРАКТ","С №21 - СИБИРСКИЙ - ДО №47"]
["СИБ. ТРАКТ","С №49 - ЛЕЧЕБНЫЙ"]
["СИБ.ТРАКТ 10КМ","ЛЕЧЕБНЫЙ"]
["СИБ.ТРАКТ 14КМ","КОМПРЕССОРНЫЙ"]
["СИБ.ТРАКТ 15КМ","СИБИРСКИЙ"]
["СИБ.ТРАКТ 17КМ","КОЛЬЦОВО"]
["СИБ.ТРАКТ 8КМ","ЛЕЧЕБНЫЙ"]
["СИБ.ТРАКТ ДУБЛЕР","ЖБИ"]
["СИБИРКА","САДОВЫЙ"]
["СИЛИКАТНЫЙ","ХИММАШ"]
["СИМБИРКА","САДОВЫЙ"]
["СИМБИРСКИЙ","УРАЛМАШ"]
["СИМСКАЯ","ЕЛИЗАВЕТ"]
["СИМФЕРОПОЛЬСКАЯ","ЧЕРМЕТ"]
["СИНАРСКАЯ","ИЗОПЛИТ"]
["СИНИЙ","СИНИЕ КАМНИ"]
["СИНЯЕВА","ВИЗ"]
["СИРЕНЕВАЯ","ГОРНЫЙ ЩИТ"]
["СИРЕНЕВЫЙ","ЖБИ"]
["СКАЛЬНАЯ","ЕЛИЗАВЕТ"]
["СКВОРЦОВЫЙ","САДОВЫЙ"]
["СКЛАДСКОЙ","УНЦ"]
["СКОРОСТНОЙ","ВИЗ"]
["СЛАВЯНСКАЯ","ХИММАШ"]
["СЛЕСАРЕЙ","ВИЗ"]
["СЛОБОДСКОЙ","ПТИЦЕФАБРИКА"]
["СМАЗЧИКОВ","ПИОНЕРСКИЙ"]
["СМОЛЕНСКАЯ","ЧЕРМЕТ"]
["СНАЙПЕРОВ","АВТОВОКЗАЛ"]
["СОБОЛЕВА","ШИРОКАЯ РЕЧКА"]
["СОБОЛИНЫЙ","7 КЛЮЧЕЙ"]
["СОВЕТСКАЯ","ВЕРХНЕМАКАРОВО"]
["СОВЕТСКАЯ","ПИОНЕРСКИЙ"]
["СОВЕТСКАЯ","СЕВЕРКА"]
["СОВЕТСКАЯ","ШАБРОВСКИЙ"]
["СОВЕТСКАЯ","ШУВАКИШ"]
["СОВЕТСКИЙ","ГОРНЫЙ ЩИТ"]
["СОВЕТСКИХ ЖЕНЩИН","Ю-З"]
["СОВРЕМЕННИКОВ","ЧЕРМЕТ"]
["СОВХОЗНАЯ","ШАБРОВСКИЙ"]
["СОВХОЗНАЯ","ЭЛЬМАШ"]
["СОВХОЗНЫЙ","ЦЕНТР"]
["СОДРУЖЕСТВА","КАЛИНОВСКИЙ"]
["СОЗВЕЗДИЙ","УРАЛМАШ"]
["СОКОЛИНАЯ","ШУВАКИШ"]
["СОЛДАТСКАЯ","САДОВЫЙ"]
["СОЛИКАМСКАЯ","С.СОРТИРОВКА"]
["СОЛНЕЧНАЯ","ПИОНЕРСКИЙ"]
["СОЛНЕЧНАЯ","СЕВЕРКА"]
["СОЛОВЬИНЫЙ","ИСТОК"]
["СОРТИРОВОЧНАЯ","С.СОРТИРОВКА"]
["СОСЕДСКИЙ","ШАРТАШ"]
["СОСНОВАЯ","ГОРНЫЙ ЩИТ"]
["СОСНОВЫЙ","УРАЛМАШ"]
["СОСЬВИНСКАЯ","ПАЛКИНО"]
["СОЦИАЛИСТИЧЕСКАЯ","УРАЛМАШ"]
["СОЮЗНАЯ","АВТОВОКЗАЛ"]
["СПАРТАКА","ЗАРЕЧНЫЙ"]
["СПЕЦИАЛИСТОВ","ИСТОК"]
["СПОКОЙНЫЙ","СОВХОЗ"]
["СПОРТИВНАЯ","СОВХОЗ"]
["СПУТНИКОВ","КОЛЬЦОВО"]
["СРЕДНЕУРАЛЬСКАЯ","ВОКЗАЛЬНЫЙ"]
["СТ.БОЛЬШЕВИКОВ","ЭЛЬМАШ"]
["СТАЛЕВАРОВ","ВИЗ"]
["СТАЛЬСКОГО","НИЖНЕИСЕТСКИЙ"]
["СТАНОВОЙ","УКТУС"]
["СТАНОЧНИКОВ","ЗАВОКЗАЛЬНЫЙ"]
["СТАНЦИОННАЯ","САДОВЫЙ"]
["СТАНЦИЯ ИСТОК","КОМПРЕССОРНЫЙ"]
["СТАНЦИЯ КЕРАМИК","ЧЕРМЕТ"]
["СТАНЦИЯ КОЛЬЦОВО","ЧЕРМЕТ"]
["СТАРАТЕЛЕЙ","ВИЗ"]
["СТАРОЖИЛОВ","ПОЛЕВОДСТВО"]
["СТАРТОВАЯ","КОЛЬЦОВО"]
["СТАРЫЙ","КОЛЬЦОВО"]
["СТАХАНОВА","НИЖНЕИСЕТСКИЙ"]
["СТАХАНОВСКАЯ","УРАЛМАШ"]
["СТАХАНОВСКИЙ","ЕЛИЗАВЕТ"]
["СТАЧЕК","ЭЛЬМАШ"]
["СТОЛЯРНЫЙ","АВТОВОКЗАЛ"]
["СТОРОЖИЛОВ","ГОРНЫЙ ЩИТ"]
["СТРЕЛЕЦКАЯ","ПТИЦЕФАБРИКА"]
["СТРЕЛОЧНИКОВ","ВОКЗАЛЬНЫЙ"]
["СТРЕЛОЧНИКОВ","СЕВЕРКА"]
["СТРОГАЛЬЩИКОВ","ЕЛИЗАВЕТ"]
["СТРОЕВОЙ","ПИОНЕРСКИЙ"]
["СТРОИТЕЛЕЙ","С.СОРТИРОВКА"]
["СТРОИТЕЛЕЙ","СЕВЕРКА"]
["СТРОИТЕЛЕЙ","ШАБРОВСКИЙ"]
["СТУДЕНЧЕСКАЯ","ВТУЗГОРОДОК"]
["СУББОТНИКОВ ПЛ.","ВИЗ"]
["СУВОРОВСКИЙ","УРАЛМАШ"]
["СУЛИМОВА","ПИОНЕРСКИЙ"]
["СУРИКОВА","АВТОВОКЗАЛ"]
["СУХАНОВСКИЙ","ЕЛИЗАВЕТ"]
["СУХОДОЛЬСКАЯ","ШИРОКАЯ РЕЧКА"]
["СУХОЙ","ЛЕЧЕБНЫЙ"]
["СУХОЛОЖСКАЯ","ЧЕРМЕТ"]
["СУХОРУКОВА","ВИЗ"]
["СУХУМСКИЙ","ЧЕРМЕТ"]
["СЦЕПЩИКОВ","ПИОНЕРСКИЙ"]
["СЫЗРАНСКИЙ","ЧЕРМЕТ"]
["СЫЛВИНСКАЯ","7 КЛЮЧЕЙ"]
["СЫРОМОЛОТОВА","ЖБИ"]
["СЫСЕРТСКИЙ","АВТОВОКЗАЛ"]
["СЫСЕРТЬ 25КМ","ШАБРОВСКИЙ"]
["СЫСЕРТЬ 29КМ","ШАБРОВСКИЙ"]
["СЫСЕРТЬ СТ.","ШАБРОВСКИЙ"]
["ТАБОРИНСКАЯ","ШАРТАШ"]
["ТАВАЙТУЙСКАЯ","ЧЕТ: Н.СОРТИРОВКА - №12"]
[{"$f":"A1357","v":"ТАВАЙТУЙСКАЯ"},"С №14 - С.СОРТИРОВКА"]
["ТАВАЙТУЙСКАЯ","НЕЧЕТ: Н.СОРТИРОВКА - ДО №1"]
["ТАВАЙТУЙСКАЯ","С №3 - С.СОРТИРОВКА"]
["ТАВДИНСКИЙ","ВОКЗАЛЬНЫЙ"]
["ТАГАНСКАЯ","ЭЛЬМАШ"]
["ТАГИЛЬСКАЯ","ЗАВОКЗАЛЬНЫЙ"]
["ТАЕЖНАЯ","С.СОРТИРОВКА"]
["ТАЛЛИНСКИЙ","ЧЕРМЕТ"]
["ТАЛЬКОВАЯ","ШАБРОВСКИЙ"]
["ТАЛЬКОВСКАЯ","ШАБРОВСКИЙ"]
["ТАНКИСТОВ","ВИЗ"]
["ТАТАРСКИЙ","Ю-З"]
["ТАТИЩЕВА","ВИЗ"]
["ТАШКЕНТСКАЯ","УРАЛМАШ"]
["ТБИЛИССКИЙ","БОТАНИЧЕСКИЙ"]
["ТВЕРИТИНА","ЧЕТ: ПАРКОВЫЙ - ДО №30"]
[{"$f":"A1373","v":"ТВЕРИТИНА"},"С №32 - ЦЕНТР"]
["ТВЕРИТИНА","НЕЧЕТ: ПАРКОВЫЙ - №39"]
["ТВЕРИТИНА","С №41 - ЦЕНТР"]
["ТВЕРСКОЙ","УРАЛМАШ"]
["ТЕАТРАЛЬНЫЙ","ЦЕНТР"]
["ТЕКСТИЛЬЩИКОВ","ПАРКОВЫЙ"]
["ТЕЛЕФОННЫЙ","ШАРТАШ"]
["ТЕЛЬМАНА","Ю-З"]
["ТЕНИСТАЯ","ГОРНЫЙ ЩИТ"]
["ТЕПЛАЯ","ГОРНЫЙ ЩИТ"]
["ТЕПЛИЧНАЯ","ГОРНЫЙ ЩИТ"]
["ТЕПЛИЧНАЯ","ЭЛЬМАШ"]
["ТЕПЛОГОРСКИЙ","ЭЛЬМАШ"]
["ТЕПЛОХОДНЫЙ","Н.СОРТИРОВКА"]
["ТЕПЛЫЙ","ПИОНЕРСКИЙ"]
["ТЕХНИЧЕСКАЯ","ЧЕТ: Н.СОРТИРОВКА - ДО №34"]
[{"$f":"A1389","v":"ТЕХНИЧЕСКАЯ"},"С №36 - С.СОРТИРОВКА - ДО №152"]
["ТЕХНИЧЕСКАЯ","С №154 - 7 КЛЮЧЕЙ"]
["ТЕХНИЧЕСКАЯ","НЕЧЕТ: Н.СОРТИРОВКА - ДО №39"]
["ТЕХНИЧЕСКАЯ","С №41 - С.СОРТИРОВКА - ДО №163"]
["ТЕХНИЧЕСКАЯ","С №165 - 7 КЛЮЧЕЙ"]
["ТЕХНОЛОГИЧЕСКАЯ","ВТУЗГОРОДОК"]
["ТИМИРЯЗЕВА","ВТУЗГОРОДОК"]
["ТИТОВА","ГОРНЫЙ ЩИТ"]
["ТИТОВА","ЧЕРМЕТ"]
["ТИХВИНСКИЙ","7 КЛЮЧЕЙ"]
["ТИХИЙ","ПТИЦЕФАБРИКА"]
["ТКАЧЕЙ","ПАРКОВЫЙ"]
["ТОБОЛЬСКАЯ","ПИОНЕРСКИЙ"]
["ТОВАРНАЯ","ВОКЗАЛЬНЫЙ"]
["ТОКАРЕЙ","ВИЗ"]
["ТОЛЕДОВА","ЗАРЕЧНЫЙ"]
["ТОЛМАЧЕВА","ЦЕНТР"]
["ТОЛСТОГО","ГОРНЫЙ ЩИТ"]
["ТОПОЛЕВАЯ","НИЖНЕИСЕТСКИЙ"]
["ТОПОЛИНАЯ","ГОРНЫЙ ЩИТ"]
["ТОРГОВАЯ","ХИММАШ"]
["ТОРФОРЕЗОВ","ВИЗ"]
["ТОРФЯНАЯ","ПАЛКИН.ТОРФЯНИК"]
["ТОРФЯНОЙ","Ю-З"]
["ТОРФЯНЫЙ","Ю-З"]
["ТРАВЯНАЯ","ШИРОКАЯ РЕЧКА"]
["ТРАКТОВАЯ","КОЛЬЦОВО"]
["ТРАКТОРИСТОВ","АВТОВОКЗАЛ"]
["ТРАКТОРИСТОВ","ПОЛЕВОДСТВО"]
["ТРАМВАЙНЫЙ","ПИОНЕРСКИЙ"]
["ТРАНЗИТНЫЙ","Ю-З"]
["ТРАНСПОРТНИКОВ","ВОКЗАЛЬНЫЙ"]
["ТРЕТИЙ","СИНИЕ КАМНИ"]
["ТРОИЦКАЯ","ИСТОК"]
["ТРОСТНИКОВАЯ","МЕДНЫЙ"]
["ТРУБАЧЕВА","ПТИЦЕФАБРИКА"]
["ТРУБНЫЙ","ЭЛЬМАШ"]
["ТРУДА","С.СОРТИРОВКА"]
["ТРУДА ПЛ.","ЦЕНТР"]
["ТРУДОВАЯ","ИЗОПЛИТ"]
["ТРУДОВАЯ","КАЛИНОВСКИЙ"]
["ТРУЖЕННИКОВ","НИЖНЕИСЕТСКИЙ"]
["ТУГУЛЫМСКИЙ","7 КЛЮЧЕЙ"]
["ТУЛЬСКИЙ","Ю-З"]
["ТУМАННЫЙ","ИСТОК"]
["ТУРБИННАЯ","ЭЛЬМАШ"]
["ТУРГЕНЕВА","ЦЕНТР"]
["ТУРИСТОВ","УКТУС"]
["ТЮМЕНСКАЯ","ЗАВОКЗАЛЬНЫЙ"]
["ТЯГОВАЯ","7 КЛЮЧЕЙ"]
["УГЛОВОЙ","ХИММАШ"]
["УГОЛЬЩИКОВ","ЗАВОКЗАЛЬНЫЙ"]
["УДАРНИКОВ","ВИЗ"]
["УДЕЛЬНАЯ","ШИРОКАЯ РЕЧКА"]
["УЗКИЙ","НИЖНЕИСЕТСКИЙ"]
["УЗОРНАЯ","СОВХОЗ"]
["УКРОМНЫЙ","ШАРТАШ"]
["УКТУС 13КМ","УКТУС"]
["УКТУС СТ.","УКТУС"]
["УКТУССКАЯ","АВТОВОКЗАЛ"]
["УЛЬЯНОВСКАЯ","ЭЛЬМАШ"]
["УМЕЛЬЦЕВ","ЧЕРМЕТ"]
["УНИВЕРСИТЕТСКИЙ","ЦЕНТР"]
["УР.КОММУНАРОВ","Н.СОРТИРОВКА"]
["УР.РАБОЧИХ","УРАЛМАШ"]
["УРАЛЬСКАЯ","ПИОНЕРСКИЙ"]
["УРИЦКОГО","ЦЕНТР"]
["УРОЖАЙНАЯ","ШИРОКАЯ РЕЧКА"]
["УСОЛЬСКАЯ","7 КЛЮЧЕЙ"]
["УСПЕНСКОГО","НИЖНЕИСЕТСКИЙ"]
["УТКИНСКАЯ","7 КЛЮЧЕЙ"]
["УТРЕННИЙ","КОЛЬЦОВО"]
["УФАЛЕЙСКАЯ","ЕЛИЗАВЕТ"]
["УФИМСКАЯ","ЛЕЧЕБНЫЙ"]
["УХТОМСКАЯ","Ю-З"]
["УЧАСТОК ВТОРОЙ","ШИРОКАЯ РЕЧКА"]
["УЧАСТОК ПЕРВЫЙ","ШИРОКАЯ РЕЧКА"]
["УЧАСТОК СЕДЬМОЙ","ШИРОКАЯ РЕЧКА"]
["УЧЕБНАЯ","ШИРОКАЯ РЕЧКА"]
["УЧЕНИЧЕСКИЙ","ВТУЗГОРОДОК"]
["УЧИТЕЛЕЙ","ПИОНЕРСКИЙ"]
["УШАКОВА","РУДНЫЙ"]
["УЮТНЫЙ","ИСТОК"]
["ФАБРИЧНАЯ","ИЗОПЛИТ"]
["ФЕВР.РЕВОЛЮЦИИ","ЦЕНТР"]
["ФЕДОРОВА","Ю-З"]
["ФЕОФАНОВА","ШИРОКАЯ РЕЧКА"]
["ФЕРГАНСКАЯ","ЧЕРМЕТ"]
["ФЕРМЕРСКАЯ","ИСТОК"]
["ФЕСТИВАЛЬНАЯ","УРАЛМАШ"]
["ФИГУРНАЯ","СОВХОЗ"]
["ФИЗИКОВ","ИЗОПЛИТ"]
["ФИЗКУЛЬТУРНИКОВ","ЦЕНТР"]
["ФИН.КОММУНАРОВ","ЗАРЕЧНЫЙ"]
["ФЛОТСКАЯ","ПИОНЕРСКИЙ"]
["ФОНВИЗИНА","ВТУЗГОРОДОК"]
["ФР.БРИГАД","ЭЛЬМАШ"]
["ФРЕЗЕРНАЯ","МЕДНЫЙ"]
["ФРЕЗЕРОВЩИКОВ","ЭЛЬМАШ"]
["ФРОЛОВА","ВИЗ"]
["ФРУНЗЕ","АВТОВОКЗАЛ"]
["ФУРМАНОВА","ЧЕТ: АВТОВОКЗАЛ - ДО №122"]
[{"$f":"A1491","v":"ФУРМАНОВА"},"С №124 - Ю-З"]
["ФУРМАНОВА","НЕЧЕТ: АВТОВОКЗАЛ - ДО №113"]
["ФУРМАНОВА","С №115 - Ю-З"]
["ХАЛТУРИНА","ЗАРЕЧНЫЙ"]
["ХАРЬКОВСКАЯ","УРАЛМАШ"]
["ХАСАНОВСКАЯ","Ю-З"]
["ХВОЙНАЯ","КОМПРЕССОРНЫЙ"]
["ХЕРСОНСКИЙ","ЧЕРМЕТ"]
["ХИБИНОГОРСКИЙ","ХИММАШ"]
["ХИМИКОВ","ЦЕНТР"]
["ХИММАШЕВСКАЯ","ХИММАШ"]
["ХЛЕБНАЯ","ЛЕЧЕБНЫЙ"]
["ХМЕЛЕВА","УРАЛМАШ"]
["ХОЛЬЗУНОВА","Ю-З"]
["ХОМЯКОВА","ВИЗ"]
["ХОХРЯКОВА","ЦЕНТР"]
["ХРАМЦОВСКАЯ","ПТИЦЕФАБРИКА"]
["ХРЕБТОВЫЙ","НИЖНЕИСЕТСКИЙ"]
["ХРОМЦОВСКАЯ","ПТИЦЕФАБРИКА"]
["ХРУСТАЛЬНАЯ","СИНИЕ КАМНИ"]
["ХУТОРСКАЯ","АВТОВОКЗАЛ"]
["ХУТОРЯТА","КОЛЬЦОВО"]
["ЦВЕТОВОДОВ","ЦЕНТР"]
["ЦВЕТОЧНАЯ","ГОРНЫЙ ЩИТ"]
["ЦВЕТОЧНЫЙ","ЭЛЬМАШ"]
["ЦВИЛЛИНГА","АВТОВОКЗАЛ"]
["ЦЕНТРАЛЬНАЯ","ГОРНЫЙ ЩИТ"]
["ЦЕНТРАЛЬНАЯ","КОМПРЕССОРНЫЙ"]
["ЦЕНТРАЛЬНАЯ","САДОВЫЙ"]
["ЦЕНТРАЛЬНЫЙ","ГОРНЫЙ ЩИТ"]
["ЦЕНТРАЛЬНЫЙ РЫНОК","ЦЕНТР"]
["ЦИОЛКОВОСКОГО","АВТОВОКЗАЛ"]
["ЦЫГАНСКАЯ","СОВХОЗ"]
["ЧААДАЕВА","ВТУЗГОРОДОК"]
["ЧАЙКОВСКОГО","ЧЕТ:ЦЕНТР - ДО №14"]
[{"$f":"A1526","v":"ЧАЙКОВСКОГО"},"С №16 - АВТОВОКЗАЛ"]
["ЧАЙКОВСКОГО","НЕЧЕТ: АВТОВОКЗАЛ"]
["ЧЕБЫШЕВА","ВТУЗГОРОДОК"]
["ЧЕВЕРЕВА","ЕЛИЗАВЕТ"]
["ЧЕКИСТОВ","ПИОНЕРСКИЙ"]
["ЧЕЛЮСКИНЦЕВ","ЧЕТ: ЦЕНТР"]
[{"$f":"A1532","v":"ЧЕЛЮСКИНЦЕВ"},"НЕЧЕТ: ВИЗ - ДО №7"]
["ЧЕЛЮСКИНЦЕВ","С №9 - ВОКЗАЛЬНЫЙ"]
["ЧЕЛЯБИНСКИЙ","АВТОВОКЗАЛ"]
["ЧЕРВОННАЯ","С.СОРТИРОВКА"]
["ЧЕРДЫНСКАЯ","Ю-З"]
["ЧЕРЕМУХОВАЯ","ШАРТАШ"]
["ЧЕРЕМУХОВСКАЯ","ИЗОПЛИТ"]
["ЧЕРЕМШАНСКАЯ","ШИРОКАЯ РЕЧКА"]
["ЧЕРЕПАНОВА","АВТОВОКЗАЛ"]
["ЧЕРЕПАНОВА","ЗАРЕЧНЫЙ"]
["ЧЕРКАССКАЯ","Ю-З"]
["ЧЕРНИГОВСКИЙ","УРАЛМАШ"]
["ЧЕРНИЧНАЯ","ШИРОКАЯ РЕЧКА"]
["ЧЕРНОМОРСКИЙ","ЭЛЬМАШ"]
["ЧЕРНОУСОВСКИЙ","ЕЛИЗАВЕТ"]
["ЧЕРНОЯРСКАЯ","УРАЛМАШ"]
["ЧЕРНЫШЕВСКОГО","ЦЕНТР"]
["ЧЕРНЯХОВСКОГО","ХИММАШ"]
["ЧЕТВЕРТЫЙ","СИНИЕ КАМНИ"]
["ЧЕХОВА","Н.СОРТИРОВКА"]
["ЧИСТАЯ","ПТИЦЕФАБРИКА"]
["ЧИСТОВА","УНЦ"]
["ЧИСТОПОЛЬСКАЯ","ЖБИ"]
["ЧИТИНСКАЯ","7 КЛЮЧЕЙ"]
["ЧКАЛОВА","ВЕРХНЕМАКАРОВО"]
["ЧКАЛОВА","УНЦ"]
["ЧКАЛОВА","Ю-З"]
["ЧУКОТСКАЯ","ПИОНЕРСКИЙ"]
["ЧУПИНА","НИЖНЕИСЕТСКИЙ"]
["ЧУСОВСКОЙ","ВЕРХНЕМАКАРОВО"]
["ЧУСОВСКОЙ ТРАКТ","ВИЗ"]
["ЧУЦКАЕВА","ПЫШМА"]
["ШАБЛОННЫЙ","ШАРТАШ"]
["ШАДРИНСКИЙ","ПИОНЕРСКИЙ"]
["ШАЙТАНСКИЙ","ВИЗ"]
["ШАМАРСКИЙ","КАРАСЬЕОЗЕРСК"]
["ШАРОНОВА","АВТОВОКЗАЛ"]
["ШАРТАШСКАЯ","ВЕРХНЕМАКАРОВО"]
["ШАТРОВАЯ","УКТУС"]
["ШАТУРСКАЯ","АВТОВОКЗАЛ"]
["ШАУМЯНА","Ю-З"]
["ШАХТЕРОВ","ВИЗ"]
["ШВАРЦА","БОТАНИЧЕСКИЙ"]
["ШЕВЕЛЕВА","ВИЗ"]
["ШЕВЧЕНКО","ЦЕНТР"]
["ШЕЙНКМАНА","ЦЕНТР"]
["ШЕКСПИРА","ВИЗ"]
["ШЕСТЕРИКОВА","ГОРНЫЙ ЩИТ"]
["ШЕСТОЙ","СИНИЕ КАМНИ"]
["ШЕФСКАЯ","ЭЛЬМАШ"]
["ШИЛОВСКИЙ","ЗАРЕЧНЫЙ"]
["ШИРОКИЙ","УКТУС"]
["ШИРШОВА","Ю-З"]
["ШИТОВСКИЙ","ШУВАКИШ"]
["ШИШИМСКАЯ","УКТУС"]
["ШКОЛЬНАЯ","ШУВАКИШ"]
["ШКОЛЬНИКОВ","ВИЗ"]
["ШКОЛЬНЫЙ","САДОВЫЙ"]
["ШКОЛЬНЫЙ","ПАЛКИНО"]
["ШКОЛЬНЫЙ","ШАБРОВСКИЙ"]
["ШЛАКОБЛОЧНАЯ","ХИММАШ"]
["ШМИДТА","АВТОВОКЗАЛ"]
["ШОЛОХОВА","ЛЕЧЕБНЫЙ"]
["ШОРНЫЙ","ШАРТАШСКИЙ РЫНОК"]
["ШОФЕРОВ","ВТУЗГОРОДОК"]
["ШПАНЬКОВКА","ИСТОК"]
["ШУВАКИШСКАЯ","С.СОРТИРОВКА"]
["ШУМИХИНСКАЯ","ШАРТАШ"]
["ЩЕДРИНА","ЦЕНТР"]
["ЩЕЛКУНСКАЯ","ЕЛИЗАВЕТ"]
["ЩЕРБАКОВА","УКТУС"]
["ЩИТОВСКАЯ","ШУВАКИШ"]
["ЩОРСА","АВТОВОКЗАЛ"]
["ЭЛЕКТРИКОВ","ЭЛЬМАШ"]
["ЭЛЕКТРОДЕПО","С.СОРТИРОВКА"]
["ЭЛЕКТРОСТИЛОЧНАЯ","МЕДНЫЙ"]
["ЭНГЕЛЬСА","ЦЕНТР"]
["ЭНЕРГЕТИКОВ","ЧЕРМЕТ"]
["ЭНЕРГОСТРОИТЕЛЕЙ","ВИЗ"]
["ЭНТУЗИАСТОВ","ЭЛЬМАШ"]
["ЭПРОНОВСКАЯ","ВИЗ"]
["ЭСКАДРОННАЯ","ЧЕРМЕТ"]
["ЭСТОНСКАЯ","КОМПРЕССОРНЫЙ"]
["Ю.ФУЧИКА","АВТОВОКЗАЛ"]
["Ю.ФУЧИКА","БОТАНИЧЕСКИЙ"]
["ЮБИЛЕЙНАЯ","ПЫШМА"]
["ЮБИЛЕЙНАЯ","СЕВЕРКА"]
["ЮЖНАЯ","АВТОВОКЗАЛ"]
["ЮЖНОГОРСКАЯ","ХИММАШ"]
["ЮЖНЫЙ","ВЕРХНЕМАКАРОВО"]
["ЮЗОВСКИЙ","Ю-З"]
["ЮМАШЕВА","ВИЗ"]
["ЮРОВСКОЙ","ЖБИ"]
["ЯБЛОНЕВАЯ","УКТУС"]
["ЯГОДНАЯ","ШИРОКАЯ РЕЧКА"]
["ЯГОДНЫЙ","САДОВЫЙ"]
["ЯКОРНЫЙ","7 КЛЮЧЕЙ"]
["ЯКУТСКАЯ","УКТУС"]
["ЯЛТИНСКИЙ","Ю-З"]
["ЯЛУНИНСКАЯ","ПТИЦЕФАБРИКА"]
["ЯМСКАЯ","Ю-З"]
["ЯРКАЯ","УРАЛМАШ"]
["ЯРОВОЙ","ШАРТАШ"]
["ЯРОСЛАВСКАЯ","УРАЛМАШ"]
["ЯСЕНЕВАЯ","ИСТОК"]
["ЯСНАЯ","ГОРНЫЙ ЩИТ"]
["ЯСНАЯ","Ю-З"]